Workbook

Sheet 1. ENTER DATA
A1: Row | B1: STORMWATER LOAD ANALYSIS TOOL 1.1
A2: 2 | B2: For full instructions and assumptions, see SLAT User Manual. | Q2: Internal Lists
A3: =A2+1 -> 3 | B3: (1) Enable Macros in the worksheet.
A4: 4 | B4: (2) If performing a new analysis, click "Restore Defaults" button to the right. | Q4: BMP 1 Options | R4: BMP 2 Options | S4: Conveyance Options | T4: WQV Options | U4: Drainage areas | V4: Infiltration Field Options
A5: 5 | B5: (3) Answer questions in the yellow cells. Move vertically from top to bottom. | Q5: None | R5: None | S5: Pumped | T5: Yes | U5: 1 | V5: Irrigation
A6: 6 | B6: (4) Click "View Full Results" button at bottom. | Q6: Biofiltration | R6: Infiltration Field | S6: Gravity Drained | T6: No | U6: 2 | V6: Level spread
A7: 7 | B7: Assumptions: SCMs IN SERIES that treat a specified drainage area, and the second SCM only receives treated volume (not bypass/overflow) from the first SCM. | Q7: Retention Basin | R7: Beneficial Reuse | U7: 3 | V7: N/A
A8: 8 | Q8: Rainwater Harvesting | R8: Alternative | U8: 4
A9: 9 | B9: KEY | C9: Required User Input | D9: Key User Input | E9: Internal Calculation | F9: Error | G9: Calculator Output | H9: Does Not Apply | Q9: Sedimentation/Filtration | S9: Drawdown options | T9: Splitter Options
A10: 10 | Q10: Alternative | S10: Drawdown Time | T10: Yes (Off-Line)
A11: 11 | B11: Step 1: Input site characteristics in yellow highlighted cells | S11: Flow Rate | T11: No (On-Line)
A12: 12 | B12: Site Name | E12: Editor Name | G12: Date | H12: SLAT 1.1 - 3/2015 | J12: Simplified Schematic
A13: 13 | Q13: FOR PLOTTING | T13: Infiltration Options | U13: Infiltration Field Options
A14: 14 | B14: Is your site within the Barton Springs Zone? | E14: Yes | Q14: Captions | T14: Yes | U14: Yes
A15: 15 | B15: How many drainage areas, nmax, does your site have? | E15: 1 | Q15: =IF(E14="Yes","Existing","Sed/Fil Equiv") -> Existing | R15: Developed, Untreated | S15: Proposed | T15: No; infiltrate all routed water | U15: No; calculate area
A16: 16 | E16: Drainage Area A | F16: Drainage Area B | G16: Drainage Area C | H16: Drainage Area D
A17: 17 | B17: Drainage area to the control, An (Acres) | E17: 1 | F17: 1 | G17: 1 | H17: 1 | Q17: Baseline Loads | T17: Compliance Factor
A18: 18 | B18: Base impervious cover of the drainage area, ICB (%) | E18: 0 | F18: 0 | G18: 0 | H18: 0 | T18: Compliance Factor (Compare to Baseline)
A19: 19 | B19: Developed impervious cover of the drainage area, ICD (%) | E19: 0 | F19: 0 | G19: 0 | H19: 0 | T19: Compliance Factor (Compare to Sed/Fil)
A20: 20 | B20: Annual average runoff for existing site, VEx (in/yr) | E20: ='3. CALCS_Loads'!C83 -> 1.184518771 | F20: ='3. CALCS_Loads'!D83 -> 0 | G20: ='3. CALCS_Loads'!E83 -> 0 | H20: ='3. CALCS_Loads'!F83 -> 0
A21: 21 | B21: Annual average runoff for developed site, Vd (in/yr) | E21: ='3. CALCS_Loads'!C88 -> 1.184518771 | F21: ='3. CALCS_Loads'!D88 -> 0 | G21: ='3. CALCS_Loads'!E88 -> 0 | H21: ='3. CALCS_Loads'!F88 -> 0
A22: 22
A23: 23 | B23: Step 2: Input SCM characteristics in yellow highlighted cells
A24: 24 | E24: Drainage Area A | F24: Drainage Area B | G24: Drainage Area C | H24: Drainage Area D
A25: 25 | B25: SCM 1 (First in Series) | E25: SCM A1 | F25: SCM B1 | G25: SCM C1 | H25: SCM D1
A26: 26 | B26: SCM Type | E26: Retention Basin | F26: Retention Basin | G26: Retention Basin | H26: Retention Basin
A27: 27 | B27: Is SCM 1 off-line? | E27: Yes (Off-Line) | F27: Yes (Off-Line) | G27: Yes (Off-Line) | H27: Yes (Off-Line)
A28: 28 | B28: What is the water quality volume, WQV, (in)? | E28: 2.5 | F28: 2.5 | G28: 2.5 | H28: 2.5 | J28: ='2. RESULTS'!G18 -> COMPLIANT
A29: 29 | B29: Minimum water quality volume allowed (in) | E29: =IF($E$14="Yes",'3. CALCS_Loads'!C93,0) -> 0.5 | F29: =IF($E$14="Yes",'3. CALCS_Loads'!D93,0) -> 0.5 | G29: =IF($E$14="Yes",'3. CALCS_Loads'!E93,0) -> 0.5 | H29: =IF($E$14="Yes",'3. CALCS_Loads'!F93,0) -> 0.5
A30: 30 | B30: SCM 1 Actual Volume (ft3) | E30: =WQV_A1*DA_A*3630 -> 9075 | F30: =WQV_B1*DA_B*3630 -> 9075 | G30: =WQV_C1*DA_C*3630 -> 9075 | H30: =WQV_D1*DA_D*3630 -> 9075
A31: 31 | B31: Do you know the drawdown time or the flow rate? | E31: Drawdown Time | F31: Drawdown Time | G31: Drawdown Time | H31: Drawdown Time
A32: 32 | B32: Drawdown Time, DDT (hrs) | E32: 60 | F32: 60 | G32: 60 | H32: 60
A33: 33 | B33: Flow Rate (gpm) | E33: 15.08 | F33: 15.08 | G33: 15.08 | H33: 15.08
A34: 34 | B34: Treatment Rate, Ω (in/hr) | E34: ='5.CALCS_Adams&Papa'!B28 -> 0.04166666667 | F34: ='5.CALCS_Adams&Papa'!C28 -> 0.04166666667 | G34: ='5.CALCS_Adams&Papa'!D28 -> 0.04166666667 | H34: ='5.CALCS_Adams&Papa'!E28 -> 0.04166666667
A35: 35 | B35: Do you already know the runoff capture efficiency? | E35: No | F35: No | G35: No | H35: No
A36: 36 | B36: User Entered Runoff Capture Efficiency, RCE (%) | E36: 0 | F36: 0 | G36: 0 | H36: 0
A37: =A36+1 -> 37 | B37: Runoff Capture Efficiency, RCE (%) | E37: =IF(E$26="None",0,IF(E35="Yes",E36,RCE_A1_AP*100)) -> 99.95306241 | F37: =IF(F$26="None",0,IF(F35="Yes",F36,RCE_B1_AP*100)) -> 99.95306241 | G37: =IF(G$26="None",0,IF(G35="Yes",G36,RCE_C1_AP*100)) -> 99.95306241 | H37: =IF(H$26="None",0,IF(H35="Yes",H36,RCE_D1_AP*100)) -> 99.95306241
A38: 38 | B38: Annual average volume treated by SCM 1, VT,1 (in/yr) | E38: ='3. CALCS_Loads'!C144 -> 1.183962786 | F38: ='3. CALCS_Loads'!D144 -> 0 | G38: ='3. CALCS_Loads'!E144 -> 0 | H38: ='3. CALCS_Loads'!F144 -> 0
A39: 39 | B39: Annual average bypass volume, Vby,1 (in/yr) | E39: ='3. CALCS_Loads'!C146 -> 0.000555984587 | F39: ='3. CALCS_Loads'!D146 -> 0 | G39: ='3. CALCS_Loads'!E146 -> 0 | H39: ='3. CALCS_Loads'!F146 -> 0
A40: 40 | B40: Conveyance
A41: 41 | B41: How is effluent from SCM 1 discharged? | E41: Pumped | F41: Pumped | G41: Pumped | H41: Pumped
A42: 42 | B42: Delay after end of rainfall before discharging SCM 1 (hrs) | E42: 12 | F42: 12 | G42: 12 | H42: 12
A43: 43
A44: 44 | B44: SCM 2 (Second in Series) | E44: SCM A2 | F44: SCM B2 | G44: SCM C2 | H44: SCM D2
A45: 45 | B45: SCM Type | E45: Infiltration Field | F45: Infiltration Field | G45: Infiltration Field | H45: Infiltration Field
A46: 46 | B46: Percent of SCM 1's WQV routed to SCM 2 | E46: 100 | F46: 100 | G46: 100 | H46: 100
A47: 47 | B47: Water quality volume routed to SCM 2 (in) | E47: ='3. CALCS_Loads'!C150 -> 2.5 | F47: ='3. CALCS_Loads'!D150 -> 0 | G47: ='3. CALCS_Loads'!E150 -> 0 | H47: ='3. CALCS_Loads'!F150 -> 0
A48: 48 | B48: Does SCM 2 reduce volume, such as by infiltration? | E48: Yes | F48: Yes | G48: Yes | H48: Yes
A49: 49 | B49: Do you already know the infiltrated or reused water quality volume? | E49: No; infiltrate all routed water | F49: No; infiltrate all routed water | G49: No; infiltrate all routed water | H49: No; infiltrate all routed water
A50: =A49+1 -> 50 | B50: User-entered infilt. water quality volume, WQVinf (in) | E50: 0 | F50: 0 | G50: 0 | H50: 0
A51: 51 | B51: Number of application zones | E51: 2 | F51: 2 | G51: 2 | H51: 2
A52: =A51+1 -> 52 | B52: Soil infiltration rate (in/hr) | E52: 0.2 | F52: 0.2 | G52: 0.2 | H52: 0.2
A53: =A52+1 -> 53 | B53: Assumed total application time (hrs) | E53: ='4. CALCS_Infiltration'!E5 -> 60 | F53: ='4. CALCS_Infiltration'!F5 -> 60 | G53: ='4. CALCS_Infiltration'!G5 -> 60 | H53: ='4. CALCS_Infiltration'!H5 -> 60
A54: 54 | B54: Do you know the infiltration field area? | E54: No; calculate area | F54: No; calculate area | G54: No; calculate area | H54: No; calculate area
A55: 55 | B55: User-Entered Infiltration Field Area (Ac) | E55: 0 | F55: 0 | G55: 0 | H55: 0
A56: 56 | B56: Field Area (Ac) | E56: ='4. CALCS_Infiltration'!E20 -> 0.4166666667 | F56: ='4. CALCS_Infiltration'!F20 -> 0 | G56: ='4. CALCS_Infiltration'!G20 -> 0 | H56: ='4. CALCS_Infiltration'!H20 -> 0
A57: 57 | B57: Annual Infiltrated Volume, Vinf (in/yr) | E57: ='3. CALCS_Loads'!C154 -> 1.183962786 | F57: ='3. CALCS_Loads'!D154 -> 0 | G57: ='3. CALCS_Loads'!E154 -> 0 | H57: ='3. CALCS_Loads'!F154 -> 0
A58: =A57+1 -> 58 | B58: Annual Non-Infilt. Volume Treated by SCM 2, VT,2 (in/yr) | E58: ='3. CALCS_Loads'!C156 -> 0 | F58: ='3. CALCS_Loads'!D156 -> 0 | G58: ='3. CALCS_Loads'!E156 -> 0 | H58: ='3. CALCS_Loads'!F156 -> 0
A59: =A58+1 -> 59 | J59: =J28 -> COMPLIANT
A60: 60 | B60: Step 3: Input Effluent Data for Alternative SCMs
A61: 61 | E61: Drainage Area A | F61: Drainage Area B | G61: Drainage Area C | H61: Drainage Area D
A62: 62 | E62: SCM A1 | F62: SCM B1 | G62: SCM C1 | H62: SCM D1
A63: 63 | C63: Pollutant | D63: Units | E63: =E26 -> Retention Basin | F63: =F26 -> Retention Basin | G63: Retention Basin | H63: Retention Basin
A64: 64 | C64: COD | D64: mg/L
A65: 65 | C65: E. coli | D65: CFU/100mL
A66: 66 | C66: Pb | D66: mg/L
A67: 67 | C67: TN | D67: mg/L
A68: 68 | C68: TOC | D68: mg/L
A69: 69 | C69: TP | D69: mg/L
A70: 70 | C70: TSS | D70: mg/L
A71: 71 | C71: Zn | D71: mg/L
A72: 72 | E72: =E44 -> SCM A2 | F72: SCM B2 | G72: SCM C2 | H72: =H44 -> SCM D2
A73: 73 | C73: Pollutant | E73: =E45 -> Infiltration Field | F73: =F45 -> Infiltration Field | G73: Infiltration Field | H73: Infiltration Field
A74: 74 | C74: COD | D74: mg/L
A75: 75 | C75: E. coli | D75: CFU/100mL
A76: 76 | C76: Pb | D76: mg/L
A77: 77 | C77: TN | D77: mg/L
A78: 78 | C78: TOC | D78: mg/L
A79: 79 | C79: TP | D79: mg/L
A80: 80 | C80: TSS | D80: mg/L
A81: 81 | C81: Zn | D81: mg/L
A82: 82 | J82: =J59 -> COMPLIANT

Sheet 2. RESULTS
A1: ='1. ENTER DATA'!B1 -> STORMWATER LOAD ANALYSIS TOOL 1.1 | J1: 1/2 | K1: =A1 -> STORMWATER LOAD ANALYSIS TOOL 1.1 | S1: 2/2
A2: Site Name: | B2: ='1. ENTER DATA'!B12 -> Site Name | E2: By: | F2: ='1. ENTER DATA'!E12 -> Editor Name | H2: Date: | I2: ='1. ENTER DATA'!G12 -> Date | K2: Site Name: | L2: =B2 -> Site Name | O2: By: | P2: =F2 -> Editor Name | R2: Date: | S2: =I2 -> Date
A3: RESULTS: COMPLIANCE TABLE | J3: ='1. ENTER DATA'!H12 -> SLAT 1.1 - 3/2015 | K3: RESULTS: PLOTS | S3: ='1. ENTER DATA'!H12 -> SLAT 1.1 - 3/2015
A6: POLLUTANT | C6: DEVELOPED LOAD, WITH CONTROLS | H6: =IF('1. ENTER DATA'!E14="Yes","EXISTING LOAD","SED/FIL LOAD") -> EXISTING LOAD | I6: LOAD EQUIV. FACTOR, LEF | J6: FULLY COMPLIES?
C7: Drainage Area A | D7: Drainage Area B | E7: Drainage Area C | F7: Drainage Area D | G7: TOTAL LOAD, Lout
A8: COD | B8: lbs/yr | C8: ='3. CALCS_Loads'!Z166 -> 0.003145137383 | D8: ='3. CALCS_Loads'!AA166 -> 0 | E8: ='3. CALCS_Loads'!AB166 -> 0 | F8: ='3. CALCS_Loads'!AC166 -> 0 | G8: =SUM(C8:F8) -> 0.003145137383 | H8: =IF('1. ENTER DATA'!$E$14="Yes",'3. CALCS_Loads'!AD166,'3. CALCS_Loads'!AE166) -> 10.44583277 | I8: =IF('1. ENTER DATA'!$E$14="Yes",'3. CALCS_Loads'!AH166,'3. CALCS_Loads'!AI166) -> 0.0003010901526 | J8: =IF('1. ENTER DATA'!$E$14="Yes",'3. CALCS_Loads'!AJ166,'3. CALCS_Loads'!AK166) -> YES
A9: E. coli | B9: 10^6 MPN/yr | C9: ='3. CALCS_Loads'!Z167 -> 4.702987291 | D9: ='3. CALCS_Loads'!AA167 -> 0 | E9: ='3. CALCS_Loads'!AB167 -> 0 | F9: ='3. CALCS_Loads'!AC167 -> 0 | G9: =SUM(C9:F9) -> 4.702987291 | H9: =IF('1. ENTER DATA'!$E$14="Yes",'3. CALCS_Loads'!AD167,'3. CALCS_Loads'!AE167) -> 10193.46962 | I9: =IF('1. ENTER DATA'!$E$14="Yes",'3. CALCS_Loads'!AH167,'3. CALCS_Loads'!AI167) -> 0.0004613725713 | J9: =IF('1. ENTER DATA'!$E$14="Yes",'3. CALCS_Loads'!AJ167,'3. CALCS_Loads'!AK167) -> YES
A10: Pb | B10: lbs/yr | C10: ='3. CALCS_Loads'!Z168 -> 5.398366262e-07 | D10: ='3. CALCS_Loads'!AA168 -> 0 | E10: ='3. CALCS_Loads'!AB168 -> 0 | F10: ='3. CALCS_Loads'!AC168 -> 0 | G10: 5.398366262e-07 | H10: =IF('1. ENTER DATA'!$E$14="Yes",'3. CALCS_Loads'!AD168,'3. CALCS_Loads'!AE168) -> 0.001150115726 | I10: =IF('1. ENTER DATA'!$E$14="Yes",'3. CALCS_Loads'!AH168,'3. CALCS_Loads'!AI168) -> 0.0004693759192 | J10: =IF('1. ENTER DATA'!$E$14="Yes",'3. CALCS_Loads'!AJ168,'3. CALCS_Loads'!AK168) -> YES
A11: TN | B11: lbs/yr | C11: ='3. CALCS_Loads'!Z169 -> 0.0001684287566 | D11: ='3. CALCS_Loads'!AA169 -> 0 | E11: ='3. CALCS_Loads'!AB169 -> 0 | F11: ='3. CALCS_Loads'!AC169 -> 0 | G11: 0.0001684287566 | H11: =IF('1. ENTER DATA'!$E$14="Yes",'3. CALCS_Loads'!AD169,'3. CALCS_Loads'!AE169) -> 0.3195511824 | I11: =IF('1. ENTER DATA'!$E$14="Yes",'3. CALCS_Loads'!AH169,'3. CALCS_Loads'!AI169) -> 0.000527079122 | J11: =IF('1. ENTER DATA'!$E$14="Yes",'3. CALCS_Loads'!AJ169,'3. CALCS_Loads'!AK169) -> YES
A12: TOC | B12: lbs/yr | C12: ='3. CALCS_Loads'!Z170 -> 0.001198843776 | D12: ='3. CALCS_Loads'!AA170 -> 0 | E12: ='3. CALCS_Loads'!AB170 -> 0 | F12: ='3. CALCS_Loads'!AC170 -> 0 | G12: =SUM(C12:F12) -> 0.001198843776 | H12: =IF('1. ENTER DATA'!$E$14="Yes",'3. CALCS_Loads'!AD170,'3. CALCS_Loads'!AE170) -> 3.498951182 | I12: =IF('1. ENTER DATA'!$E$14="Yes",'3. CALCS_Loads'!AH170,'3. CALCS_Loads'!AI170) -> 0.0003426294662 | J12: =IF('1. ENTER DATA'!$E$14="Yes",'3. CALCS_Loads'!AJ170,'3. CALCS_Loads'!AK170) -> YES
A13: TP | B13: lbs/yr | C13: ='3. CALCS_Loads'!Z171 -> 2.111456003e-05 | D13: ='3. CALCS_Loads'!AA171 -> 0 | E13: ='3. CALCS_Loads'!AB171 -> 0 | F13: ='3. CALCS_Loads'!AC171 -> 0 | G13: 2.111456003e-05 | H13: =IF('1. ENTER DATA'!$E$14="Yes",'3. CALCS_Loads'!AD171,'3. CALCS_Loads'!AE171) -> 0.03329777027 | I13: =IF('1. ENTER DATA'!$E$14="Yes",'3. CALCS_Loads'!AH171,'3. CALCS_Loads'!AI171) -> 0.0006341133312 | J13: =IF('1. ENTER DATA'!$E$14="Yes",'3. CALCS_Loads'!AJ171,'3. CALCS_Loads'!AK171) -> YES
A14: TSS | B14: lbs/yr | C14: ='3. CALCS_Loads'!Z172 -> 0.002418403404 | D14: ='3. CALCS_Loads'!AA172 -> 0 | E14: ='3. CALCS_Loads'!AB172 -> 0 | F14: ='3. CALCS_Loads'!AC172 -> 0 | G14: 0.002418403404 | H14: =IF('1. ENTER DATA'!$E$14="Yes",'3. CALCS_Loads'!AD172,'3. CALCS_Loads'!AE172) -> 44.57604729 | I14: =IF('1. ENTER DATA'!$E$14="Yes",'3. CALCS_Loads'!AH172,'3. CALCS_Loads'!AI172) -> 5.425342872e-05 | J14: =IF('1. ENTER DATA'!$E$14="Yes",'3. CALCS_Loads'!AJ172,'3. CALCS_Loads'!AK172) -> YES
A15: Zn | B15: lbs/yr | C15: ='3. CALCS_Loads'!Z173 -> 2.970172799e-06 | D15: ='3. CALCS_Loads'!AA173 -> 0 | E15: ='3. CALCS_Loads'!AB173 -> 0 | F15: ='3. CALCS_Loads'!AC173 -> 0 | G15: 2.970172799e-06 | H15: =IF('1. ENTER DATA'!$E$14="Yes",'3. CALCS_Loads'!AD173,'3. CALCS_Loads'!AE173) -> 0.006327919002 | I15: =IF('1. ENTER DATA'!$E$14="Yes",'3. CALCS_Loads'!AH173,'3. CALCS_Loads'!AI173) -> 0.0004693759192 | J15: =IF('1. ENTER DATA'!$E$14="Yes",'3. CALCS_Loads'!AJ173,'3. CALCS_Loads'!AK173) -> YES
G18: =IF(I8<=1,IF(I9<=1,IF(I10<=1,IF(I11<=1,IF(I13<=1,IF(I14<=1,IF(I15<=1,"COMPLIANT","NOT COMPLIANT"),"NOT COMPLIANT"),"NOT COMPLIANT"),"NOT COMPLIANT"),"NOT COMPLIANT"),"NOT COMPLIANT"),"NOT COMPLIANT") -> COMPLIANT
A24: SUMMARY OF INPUTS
A25: Site Location | C25: =IF('1. ENTER DATA'!E14="Yes", "Within Barton Springs Zone - Compare to Existing Loads","Outside Barton Springs Zone - Compare to Sed/Fil Loads") -> Within Barton Springs Zone - Compare to Existing Loads
D26: Drainage Area A | E26: Drainage Area B | F26: Drainage Area C | G26: Drainage Area D | H26: TOTALS
A27: Drainage Area, An (Ac) | D27: =DA_A -> 1 | E27: =IF(n_DA=1,"N/A",DA_B) -> N/A | F27: =IF(n_DA<3,"N/A",DA_C) -> N/A | G27: =IF(n_DA<4,"N/A",DA_D) -> N/A | H27: =SUM(D27:G27) -> 1
A28: Developed IC, ICD (%) | D28: =ICA_d -> 0 | E28: =IF(n_DA=1,"N/A",ICB_d) -> N/A | F28: =IF(n_DA<3,"N/A",ICC_d) -> N/A | G28: =IF(n_DA<4,"N/A",ICD_d) -> N/A | H28: =(D28*D27+IF(n_DA>1,E28*E27,0)+IF(n_DA>2,F28*F27,0)+IF(n_DA>3,G28*G27,0))/(100*H27) -> 0
A29: SCM 1 | D29: ='1. ENTER DATA'!E26 -> Retention Basin | E29: =IF(n_DA=1,"N/A",'1. ENTER DATA'!F26) -> N/A | F29: =IF(n_DA<3,"N/A",'1. ENTER DATA'!G26) -> N/A | G29: =IF(n_DA<4,"N/A",'1. ENTER DATA'!H26) -> N/A | H29: -
A32: Water Qual. Vol, WQV (in) | D32: =WQV_A1 -> 2.5 | E32: =IF(n_DA=1,"N/A",WQV_B1) -> N/A | F32: =IF(n_DA<3,"N/A",WQV_C1) -> N/A | G32: =IF(n_DA<4,"N/A",WQV_D1) -> N/A | H32: -
A33: Actual Volume (ft3) | D33: =D32*D27/12*43560 -> 9075 | E33: =IF(n_DA=1,"N/A",E32*E27/12*43560) -> N/A | F33: =IF(n_DA<3,"N/A",F32*F27/12*43560) -> N/A | G33: =IF(n_DA<4,"N/A",G32*G27/12*43560) -> N/A | H33: =SUM(D33:G33) -> 9075
A34: Drawdown Time, DDT (hrs) | D34: =IF('1. ENTER DATA'!E$31="Drawdown Time", DDT_A1, "N/A") -> 60 | E34: =IF(n_DA=1,"N/A",IF('1. ENTER DATA'!F$31="Drawdown Time", DDT_B1, "N/A")) -> N/A | F34: =IF(n_DA<3,"N/A",IF('1. ENTER DATA'!G$31="Drawdown Time", DDT_C1, "N/A")) -> N/A | G34: =IF(n_DA<4,"N/A",IF('1. ENTER DATA'!H$31="Drawdown Time", DDT_D1, "N/A")) -> N/A | H34: -
A35: - OR - Flowrate (gpm) | D35: =IF('1. ENTER DATA'!E$31="Flow Rate", '1. ENTER DATA'!E33, "N/A") -> N/A | E35: =IF(n_DA=1,"N/A",IF('1. ENTER DATA'!F$31="Flow Rate", '1. ENTER DATA'!F33, "N/A")) -> N/A | F35: =IF(n_DA<3,"N/A",IF('1. ENTER DATA'!G$31="Flow Rate", '1. ENTER DATA'!G33, "N/A")) -> N/A | G35: =IF(n_DA<4,"N/A",IF('1. ENTER DATA'!H$31="Flow Rate", '1. ENTER DATA'!H33, "N/A")) -> N/A | H35: -
A36: SCM 2 | D36: ='1. ENTER DATA'!E45 -> Infiltration Field | E36: =IF(n_DA=1,"N/A",'1. ENTER DATA'!F45) -> N/A | F36: =IF(n_DA<3,"N/A",'1. ENTER DATA'!G45) -> N/A | G36: =IF(n_DA<4,"N/A",'1. ENTER DATA'!H45) -> N/A | H36: -
A38: Infiltration Rate (in/hr) | D38: =IF(D36<>"Infiltration Field","N/A",'1. ENTER DATA'!E52) -> 0.2 | E38: =IF(E36<>"Infiltration Field","N/A",IF(n_DA=1,"N/A",'1. ENTER DATA'!F52)) -> N/A | F38: =IF(F36<>"Infiltration Field","N/A",IF(n_DA<3,"N/A",'1. ENTER DATA'!G52)) -> N/A | G38: =IF(G36<>"Infiltration Field","N/A",IF(n_DA<4,"N/A",'1. ENTER DATA'!H52)) -> N/A | H38: -
A39: Infiltration Field Area (Ac) | D39: =IF(D36<>"Infiltration Field","N/A",'4. CALCS_Infiltration'!E20) -> 0.4166666667 | E39: =IF(E36<>"Infiltration Field","N/A",IF(n_DA=1,"N/A",'4. CALCS_Infiltration'!F20)) -> N/A | F39: =IF(F36<>"Infiltration Field","N/A",IF(n_DA<3,"N/A",'4. CALCS_Infiltration'!G20)) -> N/A | G39: =IF(G36<>"Infiltration Field","N/A",IF(n_DA<4,"N/A",'4. CALCS_Infiltration'!H20)) -> N/A | H39: =SUM(D39:G39) -> 0.4166666667
A40: Error with Input Values? | D40: =IF(OR(AND('1. ENTER DATA'!E49="Yes",'1. ENTER DATA'!E50>'1. ENTER DATA'!E47),AND('1. ENTER DATA'!E54="Yes",'1. ENTER DATA'!E55<'1. ENTER DATA'!E56)),"YES","NO") -> NO | E40: =IF(OR(AND('1. ENTER DATA'!F49="Yes",'1. ENTER DATA'!F50>'1. ENTER DATA'!F47),AND('1. ENTER DATA'!F54="Yes",'1. ENTER DATA'!F55<'1. ENTER DATA'!F56)),"YES","NO") -> NO | F40: =IF(OR(AND('1. ENTER DATA'!G49="Yes",'1. ENTER DATA'!G50>'1. ENTER DATA'!G47),AND('1. ENTER DATA'!G54="Yes",'1. ENTER DATA'!G55<'1. ENTER DATA'!G56)),"YES","NO") -> NO | G40: =IF(OR(AND('1. ENTER DATA'!H49="Yes",'1. ENTER DATA'!H50>'1. ENTER DATA'!H47),AND('1. ENTER DATA'!H54="Yes",'1. ENTER DATA'!H55<'1. ENTER DATA'!H56)),"YES","NO") -> NO

Sheet 3. CALCS_Loads
A1: CONSTANTS
A2: 31.73 | B2: R, annual rainfall, in/yr | C2: (CM-09-04, Pg 51)
A3: 79.33 | B3: Annual no. rainfall events, θ, events/yr
A5: CONVERSION FACTORS
A6: CF_1 | B6: Pollutant in mg/L | C6: 0.2267 | D6: lb-L/(mg-Ac-in) | E6: Outputs to lb/Ac-yr
A7: CF_2 | B7: Pollutant in MPN/100 mL | C7: 1.0279 | D7: 100 mL/(Ac-in) | E7: Outputs to 10^6 MPN/Ac-yr
A9: ECM TABLE 1.9: Runoff (From Table 3.2, CM-09-03)
A10: IC (%) | B10: Rv | C10: Sd | D10: Runoff Events | E10: Runoff (in)
A11: 0 | B11: 0.064 | C11: 0.218 | D11: 46 | E11: 1.18
A12: 5 | B12: 0.1 | C12: 0.198 | D12: 48.4 | E12: 1.94
A13: 10 | B13: 0.136 | C13: 0.18 | D13: 50.6 | E13: 2.76
A14: 15 | B14: 0.172 | C14: 0.163 | D14: 52.8 | E14: 3.63
A15: 20 | B15: 0.208 | C15: 0.148 | D15: 54.8 | E15: 4.55
A16: 25 | B16: 0.243 | C16: 0.134 | D16: 56.7 | E16: 5.52
A17: 30 | B17: 0.279 | C17: 0.122 | D17: 58.5 | E17: 6.54
A18: 35 | B18: 0.315 | C18: 0.11 | D18: 60.2 | E18: 7.59
A19: 40 | B19: 0.351 | C19: 0.1 | D19: 61.8 | E19: 8.67
A20: 45 | B20: 0.387 | C20: 0.091 | D20: 63.2 | E20: 9.78
A21: 50 | B21: 0.423 | C21: 0.082 | D21: 64.6 | E21: 10.91
A22: 55 | B22: 0.458 | C22: 0.075 | D22: 65.8 | E22: 12.06
A23: 60 | B23: 0.494 | C23: 0.068 | D23: 66.9 | E23: 13.23
A24: 65 | B24: 0.53 | C24: 0.062 | D24: 68 | E24: 14.42
A25: 70 | B25: 0.566 | C25: 0.056 | D25: 69 | E25: 15.61
A26: 75 | B26: 0.602 | C26: 0.051 | D26: 69.9 | E26: 16.82
A27: 80 | B27: 0.637 | C27: 0.046 | D27: 70.7 | E27: 18.03
A28: 85 | B28: 0.673 | C28: 0.042 | D28: 71.5 | E28: 19.24
A29: 90 | B29: 0.709 | C29: 0.038 | D29: 72.2 | E29: 20.46
A30: 95 | B30: 0.745 | C30: 0.034 | D30: 72.8 | E30: 21.69
A31: 100 | B31: 0.781 | C31: 0.031 | D31: 73.4 | E31: 22.91
A33: ECM TABLE 1.10: Pollutant Concentrations
A34: From CM-09-04, Table 4.8
D35: EXISTING | I35: DEVELOPED
A36: Pollutant | B36: Units | C36: Conversion Factor | D36: Undeveloped (0% IC) Concentration | E36: Drainage Area A | F36: Drainage Area B | G36: Drainage Area C | H36: Drainage Area D | I36: Drainage Area A | J36: Drainage Area B | K36: Drainage Area C | L36: Drainage Area D
A37: COD | B37: mg/L | C37: CF_1 | D37: =38.9+66.6*ICA_b/100 -> 38.9 | E37: =38.9+66.6*ICA_b/100 -> 38.9 | F37: =38.9+66.6*ICB_b/100 -> 38.9 | G37: =38.9+66.6*ICC_b/100 -> 38.9 | H37: =38.9+66.6*ICD_b/100 -> 38.9 | I37: =38.9+66.6*ICA_d/100 -> 38.9 | J37: =38.9+66.6*ICB_d/100 -> 38.9 | K37: =38.9+66.6*ICC_d/100 -> 38.9 | L37: =38.9+66.6*ICD_d/100 -> 38.9 | M37: *Function of IC
A38: E. coli | B38: CFU/100mL | C38: CF_2 | D38: 8372 | E38: =IF(ICA_b=0,$D38,$I38) -> 8372 | F38: =IF(ICB_b=0,$D38,$I38) -> 8372 | G38: =IF(ICC_b=0,$D38,$I38) -> 8372 | H38: =IF(ICD_b=0,$D38,$I38) -> 8372 | I38: 24963 | J38: 24963 | K38: 24963 | L38: 24963
A39: Pb | B39: mg/L | C39: CF_1 | D39: =(4.283*EXP(2.424*ICA_b/100))/1000 -> 0.004283 | E39: =(4.283*EXP(2.424*ICA_b/100))/1000 -> 0.004283 | F39: =(4.283*EXP(2.424*ICB_b/100))/1000 -> 0.004283 | G39: =(4.283*EXP(2.424*ICC_b/100))/1000 -> 0.004283 | H39: =(4.283*EXP(2.424*ICD_b/100))/1000 -> 0.004283 | I39: =(4.283*EXP(2.424*ICA_d/100))/1000 -> 0.004283 | J39: =(4.283*EXP(2.424*ICB_d/100))/1000 -> 0.004283 | K39: =(4.283*EXP(2.424*ICC_d/100))/1000 -> 0.004283 | L39: =(4.283*EXP(2.424*ICD_d/100))/1000 -> 0.004283 | M39: *Function of IC
A40: TN | B40: mg/L | C40: CF_1 | D40: 1.19 | E40: =IF(ICA_b=0,$D40,$I40) -> 1.19 | F40: =IF(ICB_b=0,$D40,$I40) -> 1.19 | G40: =IF(ICC_b=0,$D40,$I40) -> 1.19 | H40: =IF(ICD_b=0,$D40,$I40) -> 1.19 | I40: 2.22 | J40: 2.22 | K40: 2.22 | L40: 2.22
A41: TOC | B41: mg/L | C41: CF_1 | D41: 13.03 | E41: =IF(ICA_b=0,$D41,$I41) -> 13.03 | F41: =IF(ICB_b=0,$D41,$I41) -> 13.03 | G41: =IF(ICC_b=0,$D41,$I41) -> 13.03 | H41: =IF(ICD_b=0,$D41,$I41) -> 13.03 | I41: 13.03 | J41: 13.03 | K41: 13.03 | L41: 13.03
A42: TP | B42: mg/L | C42: CF_1 | D42: 0.124 | E42: =IF(ICA_b=0,$D42,$I42) -> 0.124 | F42: =IF(ICB_b=0,$D42,$I42) -> 0.124 | G42: =IF(ICC_b=0,$D42,$I42) -> 0.124 | H42: =IF(ICD_b=0,$D42,$I42) -> 0.124 | I42: 0.396 | J42: 0.396 | K42: 0.396 | L42: 0.396
A43: TSS | B43: mg/L | C43: CF_1 | D43: 166 | E43: =$D43 -> 166 | F43: =$D43 -> 166 | G43: =$D43 -> 166 | H43: =$D43 -> 166 | I43: 166 | J43: 166 | K43: 166 | L43: 166
A44: Zn | B44: mg/L | C44: CF_1 | D44: =(23.565*EXP(2.179*ICA_b/100))/1000 -> 0.023565 | E44: =(23.565*EXP(2.179*ICA_b/100))/1000 -> 0.023565 | F44: =(23.565*EXP(2.179*ICB_b/100))/1000 -> 0.023565 | G44: =(23.565*EXP(2.179*ICC_b/100))/1000 -> 0.023565 | H44: =(23.565*EXP(2.179*ICD_b/100))/1000 -> 0.023565 | I44: =(23.565*EXP(2.179*ICA_d/100))/1000 -> 0.023565 | J44: =(23.565*EXP(2.179*ICB_d/100))/1000 -> 0.023565 | K44: =(23.565*EXP(2.179*ICC_d/100))/1000 -> 0.023565 | L44: =(23.565*EXP(2.179*ICD_d/100))/1000 -> 0.023565 | M44: *Function of IC
A46: ECM TABLE 1.11: Treated Surface Effluent Concentrations
A47: Source: Glick et all. Impacts of Stormwater Control Measures on Water Quality in Austin, TX. CM-13-02. City of Austin Watershed Protection Department: September 2013.
A48: Pollutant | B48: Units | C48: Biofiltration | D48: Rainwater Harvesting | E48: Retention Basin | F48: Sedimentation/Filtration | G48: Wet Pond
A49: COD | B49: mg/L | C49: 22.4 | D49: 43.79 | E49: 43.79 | F49: 22.4 | G49: 31.58
A50: E. coli | B50: CFU/100mL | C50: 4895 | D50: 11065 | E50: 11065 | F50: 4895 | G50: 12138
A51: Pb | B51: mg/L | C51: 0.00574 | D51: 0.00831 | E51: 0.00831 | F51: 0.00574 | G51: 0.00994
A52: TN | B52: mg/L | C52: 1.07 | D52: 1.42 | E52: 1.42 | F52: 1.07 | G52: 1.24
A53: TOC | B53: mg/L | C53: 7.33 | D53: 11.45 | E53: 11.45 | F53: 7.33 | G53: 7.77
A54: TP | B54: mg/L | C54: 0.099 | D54: 0.224 | E54: 0.224 | F54: 0.099 | G54: 0.211
A55: TSS | B55: mg/L | C55: 20.62 | D55: 133.8 | E55: 133.8 | F55: 20.62 | G55: 44.6
A56: Zn | B56: mg/L | C56: 0.023 | D56: 0.0453 | E56: 0.0453 | F56: 0.023 | G56: 0.04388
C57: *Sand or bio, equal to sed/fil | D57: *Equal to Sedimentation | E57: *Equal to Sedimentation
A59: ECM TABLE 1.12: Bypass Concentrations As a Function of Runoff Captured
C61: Drainage Area A | D61: Drainage Area A | E61: Drainage Area B | F61: Drainage Area B | G61: Drainage Area C | H61: Drainage Area C | I61: Drainage Area D | J61: Drainage Area D | K61: Drainage Area A | L61: Drainage Area B | M61: Drainage Area C | N61: Drainage Area D
A62: Pollutant | C62: ='1. ENTER DATA'!E63 -> Retention Basin | D62: =C62 -> Retention Basin | E62: ='1. ENTER DATA'!F63 -> Retention Basin | F62: =E62 -> Retention Basin | G62: ='1. ENTER DATA'!G63 -> Retention Basin | H62: =G62 -> Retention Basin | I62: ='1. ENTER DATA'!H63 -> Retention Basin | J62: =I62 -> Retention Basin | K62: Sed/Fil Equivalent | L62: =K62 -> Sed/Fil Equivalent | M62: =K62 -> Sed/Fil Equivalent | N62: =K62 -> Sed/Fil Equivalent
B63: WQV | C63: =WQV_A1 -> 2.5 | D63: =WQV_A1 -> 2.5 | E63: =WQV_B1 -> 2.5 | F63: =WQV_B1 -> 2.5 | G63: =WQV_C1 -> 2.5 | H63: =WQV_C1 -> 2.5 | I63: =WQV_D1 -> 2.5 | J63: =WQV_D1 -> 2.5 | K63: =C93 -> 0.5 | L63: =D93 -> 0.5 | M63: 0.5 | N63: 0.5
B64: Method | C64: Yes (Off-Line) | D64: No (On-Line) | E64: =C64 -> Yes (Off-Line) | F64: =D64 -> No (On-Line) | G64: =C64 -> Yes (Off-Line) | H64: =D64 -> No (On-Line) | I64: =C64 -> Yes (Off-Line) | J64: =D64 -> No (On-Line) | K64: =$E$64 -> Yes (Off-Line) | L64: =$E$64 -> Yes (Off-Line) | M64: =$E$64 -> Yes (Off-Line) | N64: =$E$64 -> Yes (Off-Line)
A65: COD | B65: mg/L | C65: =IF(C$63>0.0053,EXP(4.493-0.5104*C$63),EXP(5.6158-212.362*C$63)) -> 24.95314833 | D65: =IF(D$63>0.0053,EXP(4.9161-0.5447*D$63),EXP(6.1257-228.771*D$63)) -> 34.96508527 | E65: =IF(E$63>0.0053,EXP(4.493-0.5104*E$63),EXP(5.6158-212.362*E$63)) -> 24.95314833 | F65: =IF(F$63>0.0053,EXP(4.9161-0.5447*F$63),EXP(6.1257-228.771*F$63)) -> 34.96508527 | G65: =IF(G$63>0.0053,EXP(4.493-0.5104*G$63),EXP(5.6158-212.362*G$63)) -> 24.95314833 | H65: =IF(H$63>0.0053,EXP(4.9161-0.5447*H$63),EXP(6.1257-228.771*H$63)) -> 34.96508527 | I65: =IF(I$63>0.0053,EXP(4.493-0.5104*I$63),EXP(5.6158-212.362*I$63)) -> 24.95314833 | J65: =IF(J$63>0.0053,EXP(4.9161-0.5447*J$63),EXP(6.1257-228.771*J$63)) -> 34.96508527 | K65: =IF(K$63>0.0053,EXP(4.493-0.5104*K$63),EXP(5.6158-212.362*K$63)) -> 69.25532241 | L65: =IF(L$63>0.0053,EXP(4.493-0.5104*L$63),EXP(5.6158-212.362*L$63)) -> 69.25532241 | M65: =IF(M$63>0.0053,EXP(4.493-0.5104*M$63),EXP(5.6158-212.362*M$63)) -> 69.25532241 | N65: =IF(N$63>0.0053,EXP(4.493-0.5104*N$63),EXP(5.6158-212.362*N$63)) -> 69.25532241
A66: E. coli | B66: CFU/100mL | C66: =IF(C$63>0.0091,EXP(10.1772-0.4647*C$63),EXP(10.4384-29.1718*C$63)) -> 8229.248687 | D66: =IF(D$63>0.0091,EXP(10.7915-0.6241*D$63),EXP(11.4771-75.97*D$63)) -> 10211.29766 | E66: =IF(E$63>0.0091,EXP(10.1772-0.4647*E$63),EXP(10.4384-29.1718*E$63)) -> 8229.248687 | F66: =IF(F$63>0.0091,EXP(10.7915-0.6241*F$63),EXP(11.4771-75.97*F$63)) -> 10211.29766 | G66: =IF(G$63>0.0091,EXP(10.1772-0.4647*G$63),EXP(10.4384-29.1718*G$63)) -> 8229.248687 | H66: =IF(H$63>0.0091,EXP(10.7915-0.6241*H$63),EXP(11.4771-75.97*H$63)) -> 10211.29766 | I66: =IF(I$63>0.0091,EXP(10.1772-0.4647*I$63),EXP(10.4384-29.1718*I$63)) -> 8229.248687 | J66: =IF(J$63>0.0091,EXP(10.7915-0.6241*J$63),EXP(11.4771-75.97*J$63)) -> 10211.29766 | K66: =IF(K$63>0.0091,EXP(10.1772-0.4647*K$63),EXP(10.4384-29.1718*K$63)) -> 20844.59581 | L66: =IF(L$63>0.0091,EXP(10.1772-0.4647*L$63),EXP(10.4384-29.1718*L$63)) -> 20844.59581 | M66: =IF(M$63>0.0091,EXP(10.1772-0.4647*M$63),EXP(10.4384-29.1718*M$63)) -> 20844.59581 | N66: =IF(N$63>0.0091,EXP(10.1772-0.4647*N$63),EXP(10.4384-29.1718*N$63)) -> 20844.59581
A67: Pb | B67: mg/L | C67: =IF(C$63>0.014,EXP(2.8821-0.4893*C$63),EXP(3.6322-54.0678*C$63))/1000 -> 0.005253266113 | D67: =IF(D$63>0.014,EXP(3.5221-0.5291*D$63),EXP(4.2534-52.7676*D$63))/1000 -> 0.009019149147 | E67: =IF(E$63>0.014,EXP(2.8821-0.4893*E$63),EXP(3.6322-54.0678*E$63))/1000 -> 0.005253266113 | F67: =IF(F$63>0.014,EXP(3.5221-0.5291*F$63),EXP(4.2534-52.7676*F$63))/1000 -> 0.009019149147 | G67: =IF(G$63>0.014,EXP(2.8821-0.4893*G$63),EXP(3.6322-54.0678*G$63))/1000 -> 0.005253266113 | H67: =IF(H$63>0.014,EXP(3.5221-0.5291*H$63),EXP(4.2534-52.7676*H$63))/1000 -> 0.009019149147 | I67: =IF(I$63>0.014,EXP(2.8821-0.4893*I$63),EXP(3.6322-54.0678*I$63))/1000 -> 0.005253266113 | J67: =IF(J$63>0.014,EXP(3.5221-0.5291*J$63),EXP(4.2534-52.7676*J$63))/1000 -> 0.009019149147 | K67: =IF(K$63>0.014,EXP(2.8821-0.4893*K$63),EXP(3.6322-54.0678*K$63))/1000 -> 0.01397751546 | L67: =IF(L$63>0.014,EXP(2.8821-0.4893*L$63),EXP(3.6322-54.0678*L$63))/1000 -> 0.01397751546 | M67: =IF(M$63>0.014,EXP(2.8821-0.4893*M$63),EXP(3.6322-54.0678*M$63))/1000 -> 0.01397751546 | N67: =IF(N$63>0.014,EXP(2.8821-0.4893*N$63),EXP(3.6322-54.0678*N$63))/1000 -> 0.01397751546
A68: TN | B68: mg/L | C68: =IF(C$63>0.0145,EXP(0.9574-0.267*C$63),EXP(1.8156-59.4508*C$63)) -> 1.336293852 | D68: =IF(D$63>0.0145,EXP(1.3219-0.2364*D$63),EXP(2.2217-62.2914*D$63)) -> 2.076949021 | E68: =IF(E$63>0.0145,EXP(0.9574-0.267*E$63),EXP(1.8156-59.4508*E$63)) -> 1.336293852 | F68: =IF(F$63>0.0145,EXP(1.3219-0.2364*F$63),EXP(2.2217-62.2914*F$63)) -> 2.076949021 | G68: =IF(G$63>0.0145,EXP(0.9574-0.267*G$63),EXP(1.8156-59.4508*G$63)) -> 1.336293852 | H68: =IF(H$63>0.0145,EXP(1.3219-0.2364*H$63),EXP(2.2217-62.2914*H$63)) -> 2.076949021 | I68: =IF(I$63>0.0145,EXP(0.9574-0.267*I$63),EXP(1.8156-59.4508*I$63)) -> 1.336293852 | J68: =IF(J$63>0.0145,EXP(1.3219-0.2364*J$63),EXP(2.2217-62.2914*J$63)) -> 2.076949021 | K68: =IF(K$63>0.0145,EXP(0.9574-0.267*K$63),EXP(1.8156-59.4508*K$63)) -> 2.279372077 | L68: =IF(L$63>0.0145,EXP(0.9574-0.267*L$63),EXP(1.8156-59.4508*L$63)) -> 2.279372077 | M68: =IF(M$63>0.0145,EXP(0.9574-0.267*M$63),EXP(1.8156-59.4508*M$63)) -> 2.279372077 | N68: =IF(N$63>0.0145,EXP(0.9574-0.267*N$63),EXP(1.8156-59.4508*N$63)) -> 2.279372077
A69: TOC | B69: mg/L | C69: =IF(C$63>0.00608,EXP(2.724-0.1886*C$63),EXP(2.724-0.1886*C$63)) -> 9.51148485 | D69: =IF(D$63>0.00608,EXP(3.1124-0.2821*D$63),EXP(3.1124-0.2821*D$63)) -> 11.10227453 | E69: =IF(E$63>0.00608,EXP(2.724-0.1886*E$63),EXP(2.724-0.1886*E$63)) -> 9.51148485 | F69: =IF(F$63>0.00608,EXP(3.1124-0.2821*F$63),EXP(3.1124-0.2821*F$63)) -> 11.10227453 | G69: =IF(G$63>0.00608,EXP(2.724-0.1886*G$63),EXP(2.724-0.1886*G$63)) -> 9.51148485 | H69: =IF(H$63>0.00608,EXP(3.1124-0.2821*H$63),EXP(3.1124-0.2821*H$63)) -> 11.10227453 | I69: =IF(I$63>0.00608,EXP(2.724-0.1886*I$63),EXP(2.724-0.1886*I$63)) -> 9.51148485 | J69: =IF(J$63>0.00608,EXP(3.1124-0.2821*J$63),EXP(3.1124-0.2821*J$63)) -> 11.10227453 | K69: =IF(K$63>0.00608,EXP(2.724-0.1886*K$63),EXP(2.724-0.1886*K$63)) -> 13.8696084 | L69: =IF(L$63>0.00608,EXP(2.724-0.1886*L$63),EXP(2.724-0.1886*L$63)) -> 13.8696084 | M69: =IF(M$63>0.00608,EXP(2.724-0.1886*M$63),EXP(2.724-0.1886*M$63)) -> 13.8696084 | N69: =IF(N$63>0.00608,EXP(2.724-0.1886*N$63),EXP(2.724-0.1886*N$63)) -> 13.8696084
A70: TP | B70: mg/L | C70: =IF(C$63>0.00426,EXP(-0.6134-0.4693*C$63),EXP(0.0336-152.341*C$63)) -> 0.1675204241 | D70: =IF(D$63>0.00426,EXP(-0.2231-0.4003*D$63),EXP(0.5338-178.08*D$63)) -> 0.294095716 | E70: =IF(E$63>0.00426,EXP(-0.6134-0.4693*E$63),EXP(0.0336-152.341*E$63)) -> 0.1675204241 | F70: =IF(F$63>0.00426,EXP(-0.2231-0.4003*F$63),EXP(0.5338-178.08*F$63)) -> 0.294095716 | G70: =IF(G$63>0.00426,EXP(-0.6134-0.4693*G$63),EXP(0.0336-152.341*G$63)) -> 0.1675204241 | H70: =IF(H$63>0.00426,EXP(-0.2231-0.4003*H$63),EXP(0.5338-178.08*H$63)) -> 0.294095716 | I70: =IF(I$63>0.00426,EXP(-0.6134-0.4693*I$63),EXP(0.0336-152.341*I$63)) -> 0.1675204241 | J70: =IF(J$63>0.00426,EXP(-0.2231-0.4003*J$63),EXP(0.5338-178.08*J$63)) -> 0.294095716 | K70: =IF(K$63>0.00426,EXP(-0.6134-0.4693*K$63),EXP(0.0336-152.341*K$63)) -> 0.4282492042 | L70: =IF(L$63>0.00426,EXP(-0.6134-0.4693*L$63),EXP(0.0336-152.341*L$63)) -> 0.4282492042 | M70: =IF(M$63>0.00426,EXP(-0.6134-0.4693*M$63),EXP(0.0336-152.341*M$63)) -> 0.4282492042 | N70: =IF(N$63>0.00426,EXP(-0.6134-0.4693*N$63),EXP(0.0336-152.341*N$63)) -> 0.4282492042
A71: TSS | B71: mg/L | C71: =IF(C$63>0.00399,EXP(5.2895-0.9341*C$63),EXP(6.3181-258.741*C$63)) -> 19.18732683 | D71: =IF(D$63>0.00399,EXP(5.8622-0.7645*D$63),EXP(6.8265-242.449*D$63)) -> 51.98472888 | E71: =IF(E$63>0.00399,EXP(5.2895-0.9341*E$63),EXP(6.3181-258.741*E$63)) -> 19.18732683 | F71: =IF(F$63>0.00399,EXP(5.8622-0.7645*F$63),EXP(6.8265-242.449*F$63)) -> 51.98472888 | G71: =IF(G$63>0.00399,EXP(5.2895-0.9341*G$63),EXP(6.3181-258.741*G$63)) -> 19.18732683 | H71: =IF(H$63>0.00399,EXP(5.8622-0.7645*H$63),EXP(6.8265-242.449*H$63)) -> 51.98472888 | I71: =IF(I$63>0.00399,EXP(5.2895-0.9341*I$63),EXP(6.3181-258.741*I$63)) -> 19.18732683 | J71: =IF(J$63>0.00399,EXP(5.8622-0.7645*J$63),EXP(6.8265-242.449*J$63)) -> 51.98472888 | K71: =IF(K$63>0.00399,EXP(5.2895-0.9341*K$63),EXP(6.3181-258.741*K$63)) -> 124.2691776 | L71: =IF(L$63>0.00399,EXP(5.2895-0.9341*L$63),EXP(6.3181-258.741*L$63)) -> 124.2691776 | M71: =IF(M$63>0.00399,EXP(5.2895-0.9341*M$63),EXP(6.3181-258.741*M$63)) -> 124.2691776 | N71: =IF(N$63>0.00399,EXP(5.2895-0.9341*N$63),EXP(6.3181-258.741*N$63)) -> 124.2691776
A72: Zn | B72: mg/L | C72: =IF(C$63>0.0147,EXP(4.61-0.4424*C$63),EXP(5.5439-63.9761*C$63))/1000 -> 0.03324817904 | D72: =IF(D$63>0.0147,EXP(5.1995-0.531*D$63),EXP(6.1534-65.4251*D$63))/1000 -> 0.0480383668 | E72: =IF(E$63>0.0147,EXP(4.61-0.4424*E$63),EXP(5.5439-63.9761*E$63))/1000 -> 0.03324817904 | F72: =IF(F$63>0.0147,EXP(5.1995-0.531*F$63),EXP(6.1534-65.4251*F$63))/1000 -> 0.0480383668 | G72: =IF(G$63>0.0147,EXP(4.61-0.4424*G$63),EXP(5.5439-63.9761*G$63))/1000 -> 0.03324817904 | H72: =IF(H$63>0.0147,EXP(5.1995-0.531*H$63),EXP(6.1534-65.4251*H$63))/1000 -> 0.0480383668 | I72: =IF(I$63>0.0147,EXP(4.61-0.4424*I$63),EXP(5.5439-63.9761*I$63))/1000 -> 0.03324817904 | J72: =IF(J$63>0.0147,EXP(5.1995-0.531*J$63),EXP(6.1534-65.4251*J$63))/1000 -> 0.0480383668 | K72: =IF(K$63>0.0147,EXP(4.61-0.4424*K$63),EXP(5.5439-63.9761*K$63))/1000 -> 0.08054370852 | L72: =IF(L$63>0.0147,EXP(4.61-0.4424*L$63),EXP(5.5439-63.9761*L$63))/1000 -> 0.08054370852 | M72: =IF(M$63>0.0147,EXP(4.61-0.4424*M$63),EXP(5.5439-63.9761*M$63))/1000 -> 0.08054370852 | N72: =IF(N$63>0.0147,EXP(4.61-0.4424*N$63),EXP(5.5439-63.9761*N$63))/1000 -> 0.08054370852
C73: *CM-14-10, "Offline" uses 80th pct, "online" uses 90th pct regressions
A76: CALCULATE: RUNOFF
C77: Drainage Area 1 | D77: Drainage Area 2 | E77: Drainage Area 3 | F77: Drainage Area 4
B78: Analyze? | C78: 1 | D78: =IF(n_DA>1,1,0) -> 0 | E78: =IF(n_DA>2,1,0) -> 0 | F78: =IF(n_DA>3,1,0) -> 0
B79: Drainage Area (Ac) | C79: =DA_A -> 1 | D79: =DA_B -> 1 | E79: =DA_C -> 1 | F79: =DA_D -> 1
A80: Existing | B80: IC % | C80: =ICA_b -> 0 | D80: =ICB_b -> 0 | E80: =ICC_b -> 0 | F80: =ICD_b -> 0
B81: Rv (Runoff Coeff) | C81: =0.7162*C80/100+0.0644 -> 0.0644 | D81: =0.7162*D80/100+0.0644 -> 0.0644 | E81: =0.7162*E80/100+0.0644 -> 0.0644 | F81: =0.7162*F80/100+0.0644 -> 0.0644
B82: Sd (Dep Storage) | C82: =0.2181*EXP(-1.9456*C80/100) -> 0.2181 | D82: =0.2181*EXP(-1.9456*D80/100) -> 0.2181 | E82: =0.2181*EXP(-1.9456*E80/100) -> 0.2181 | F82: =0.2181*EXP(-1.9456*F80/100) -> 0.2181
B83: Runoff (in/yr) | C83: =C$78*$A$2*C81*EXP(-$A$3/$A$2*C82) -> 1.184518771 | D83: =D$78*$A$2*D81*EXP(-$A$3/$A$2*D82) -> 0 | E83: =E$78*$A$2*E81*EXP(-$A$3/$A$2*E82) -> 0 | F83: =F$78*$A$2*F81*EXP(-$A$3/$A$2*F82) -> 0
B84: Runoff (Ac-in/yr) | C84: =C79*C83 -> 1.184518771 | D84: =D79*D83 -> 0 | E84: 0 | F84: 0
A85: Developed | B85: IC % | C85: =ICA_d -> 0 | D85: =ICB_d -> 0 | E85: =ICC_d -> 0 | F85: =ICD_d -> 0
B86: Rv (Runoff Coeff) | C86: =0.7162*C85/100+0.0644 -> 0.0644 | D86: =0.7162*D85/100+0.0644 -> 0.0644 | E86: =0.7162*E85/100+0.0644 -> 0.0644 | F86: =0.7162*F85/100+0.0644 -> 0.0644
B87: Sd (Dep Storage) | C87: =0.2181*EXP(-1.9456*C85/100) -> 0.2181 | D87: =0.2181*EXP(-1.9456*D85/100) -> 0.2181 | E87: =0.2181*EXP(-1.9456*E85/100) -> 0.2181 | F87: =0.2181*EXP(-1.9456*F85/100) -> 0.2181
B88: Runoff (in/yr) | C88: =C$78*$A$2*C86*EXP(-$A$3/$A$2*C87) -> 1.184518771 | D88: =D$78*$A$2*D86*EXP(-$A$3/$A$2*D87) -> 0 | E88: =E$78*$A$2*E86*EXP(-$A$3/$A$2*E87) -> 0 | F88: =F$78*$A$2*F86*EXP(-$A$3/$A$2*F87) -> 0
B89: Runoff (Ac-in/yr) | C89: =C79*C88 -> 1.184518771 | D89: =D79*D88 -> 0 | E89: 0 | F89: 0
A91: CALCULATE: '1/2" PLUS' (MINIMUM) WATER QUALITY VOLUME
C92: Drainage Area A | D92: Drainage Area B | E92: Drainage Area C | F92: Drainage Area D
B93: WQV (in) | C93: =MAX(0.5,0.5+(ICA_d-20)/100) -> 0.5 | D93: =MAX(0.5,0.5+(ICB_d-20)/100) -> 0.5 | E93: =MAX(0.5,0.5+(ICC_d-20)/100) -> 0.5 | F93: =MAX(0.5,0.5+(ICD_d-20)/100) -> 0.5
A96: CALCULATE: Effluent Concentrations For Each SCM
C97: SCM A.1 | D97: SCM B.1 | E97: SCM C.1 | F97: SCM D.1
A98: Pollutant | B98: Units | C98: ='1. ENTER DATA'!E63 -> Retention Basin | D98: ='1. ENTER DATA'!F63 -> Retention Basin | E98: ='1. ENTER DATA'!G63 -> Retention Basin | F98: ='1. ENTER DATA'!H63 -> Retention Basin
A99: COD | B99: mg/L | C99: =IF(C$98="None",I37,MIN(IF(C$98="Alternative",'1. ENTER DATA'!E64,LOOKUP(C$98,$C$48:$G$48,$C49:$G49)),I37)) -> 38.9 | D99: =IF(D$98="None",J37,MIN(IF(D$98="Alternative",'1. ENTER DATA'!F64,LOOKUP(D$98,$C$48:$G$48,$C49:$G49)),J37)) -> 38.9 | E99: =IF(E$98="None",K37,MIN(IF(E$98="Alternative",'1. ENTER DATA'!G64,LOOKUP(E$98,$C$48:$G$48,$C49:$G49)),K37)) -> 38.9 | F99: =IF(F$98="None",L37,MIN(IF(F$98="Alternative",'1. ENTER DATA'!H64,LOOKUP(F$98,$C$48:$G$48,$C49:$G49)),L37)) -> 38.9
A100: E. coli | B100: CFU/100mL | C100: =IF(C$98="None",I38,MIN(IF(C$98="Alternative",'1. ENTER DATA'!E65,LOOKUP(C$98,$C$48:$G$48,$C50:$G50)),I38)) -> 11065 | D100: =IF(D$98="None",J38,MIN(IF(D$98="Alternative",'1. ENTER DATA'!F65,LOOKUP(D$98,$C$48:$G$48,$C50:$G50)),J38)) -> 11065 | E100: =IF(E$98="None",K38,MIN(IF(E$98="Alternative",'1. ENTER DATA'!G65,LOOKUP(E$98,$C$48:$G$48,$C50:$G50)),K38)) -> 11065 | F100: =IF(F$98="None",L38,MIN(IF(F$98="Alternative",'1. ENTER DATA'!H65,LOOKUP(F$98,$C$48:$G$48,$C50:$G50)),L38)) -> 11065
A101: Pb | B101: mg/L | C101: =IF(C$98="None",I39,MIN(IF(C$98="Alternative",'1. ENTER DATA'!E66,LOOKUP(C$98,$C$48:$G$48,$C51:$G51)),I39)) -> 0.004283 | D101: =IF(D$98="None",J39,MIN(IF(D$98="Alternative",'1. ENTER DATA'!F66,LOOKUP(D$98,$C$48:$G$48,$C51:$G51)),J39)) -> 0.004283 | E101: =IF(E$98="None",K39,MIN(IF(E$98="Alternative",'1. ENTER DATA'!G66,LOOKUP(E$98,$C$48:$G$48,$C51:$G51)),K39)) -> 0.004283 | F101: =IF(F$98="None",L39,MIN(IF(F$98="Alternative",'1. ENTER DATA'!H66,LOOKUP(F$98,$C$48:$G$48,$C51:$G51)),L39)) -> 0.004283
A102: TN | B102: mg/L | C102: =IF(C$98="None",I40,MIN(IF(C$98="Alternative",'1. ENTER DATA'!E67,LOOKUP(C$98,$C$48:$G$48,$C52:$G52)),I40)) -> 1.42 | D102: =IF(D$98="None",J40,MIN(IF(D$98="Alternative",'1. ENTER DATA'!F67,LOOKUP(D$98,$C$48:$G$48,$C52:$G52)),J40)) -> 1.42 | E102: =IF(E$98="None",K40,MIN(IF(E$98="Alternative",'1. ENTER DATA'!G67,LOOKUP(E$98,$C$48:$G$48,$C52:$G52)),K40)) -> 1.42 | F102: =IF(F$98="None",L40,MIN(IF(F$98="Alternative",'1. ENTER DATA'!H67,LOOKUP(F$98,$C$48:$G$48,$C52:$G52)),L40)) -> 1.42
A103: TOC | B103: mg/L | C103: =IF(C$98="None",I41,MIN(IF(C$98="Alternative",'1. ENTER DATA'!E68,LOOKUP(C$98,$C$48:$G$48,$C53:$G53)),I41)) -> 11.45 | D103: =IF(D$98="None",J41,MIN(IF(D$98="Alternative",'1. ENTER DATA'!F68,LOOKUP(D$98,$C$48:$G$48,$C53:$G53)),J41)) -> 11.45 | E103: =IF(E$98="None",K41,MIN(IF(E$98="Alternative",'1. ENTER DATA'!G68,LOOKUP(E$98,$C$48:$G$48,$C53:$G53)),K41)) -> 11.45 | F103: =IF(F$98="None",L41,MIN(IF(F$98="Alternative",'1. ENTER DATA'!H68,LOOKUP(F$98,$C$48:$G$48,$C53:$G53)),L41)) -> 11.45
A104: TP | B104: mg/L | C104: =IF(C$98="None",I42,MIN(IF(C$98="Alternative",'1. ENTER DATA'!E69,LOOKUP(C$98,$C$48:$G$48,$C54:$G54)),I42)) -> 0.224 | D104: =IF(D$98="None",J42,MIN(IF(D$98="Alternative",'1. ENTER DATA'!F69,LOOKUP(D$98,$C$48:$G$48,$C54:$G54)),J42)) -> 0.224 | E104: =IF(E$98="None",K42,MIN(IF(E$98="Alternative",'1. ENTER DATA'!G69,LOOKUP(E$98,$C$48:$G$48,$C54:$G54)),K42)) -> 0.224 | F104: =IF(F$98="None",L42,MIN(IF(F$98="Alternative",'1. ENTER DATA'!H69,LOOKUP(F$98,$C$48:$G$48,$C54:$G54)),L42)) -> 0.224
A105: TSS | B105: mg/L | C105: =IF(C$98="None",I43,MIN(IF(C$98="Alternative",'1. ENTER DATA'!E70,LOOKUP(C$98,$C$48:$G$48,$C55:$G55)),I43)) -> 133.8 | D105: =IF(D$98="None",J43,MIN(IF(D$98="Alternative",'1. ENTER DATA'!F70,LOOKUP(D$98,$C$48:$G$48,$C55:$G55)),J43)) -> 133.8 | E105: =IF(E$98="None",K43,MIN(IF(E$98="Alternative",'1. ENTER DATA'!G70,LOOKUP(E$98,$C$48:$G$48,$C55:$G55)),K43)) -> 133.8 | F105: =IF(F$98="None",L43,MIN(IF(F$98="Alternative",'1. ENTER DATA'!H70,LOOKUP(F$98,$C$48:$G$48,$C55:$G55)),L43)) -> 133.8
A106: Zn | B106: mg/L | C106: =IF(C$98="None",I44,MIN(IF(C$98="Alternative",'1. ENTER DATA'!E71,LOOKUP(C$98,$C$48:$G$48,$C56:$G56)),I44)) -> 0.023565 | D106: =IF(D$98="None",J44,MIN(IF(D$98="Alternative",'1. ENTER DATA'!F71,LOOKUP(D$98,$C$48:$G$48,$C56:$G56)),J44)) -> 0.023565 | E106: =IF(E$98="None",K44,MIN(IF(E$98="Alternative",'1. ENTER DATA'!G71,LOOKUP(E$98,$C$48:$G$48,$C56:$G56)),K44)) -> 0.023565 | F106: =IF(F$98="None",L44,MIN(IF(F$98="Alternative",'1. ENTER DATA'!H71,LOOKUP(F$98,$C$48:$G$48,$C56:$G56)),L44)) -> 0.023565
C107: SCM A.2 | D107: SCM B.2 | E107: SCM C.2 | F107: SCM D.2
A108: Pollutant | B108: Units | C108: ='1. ENTER DATA'!E73 -> Infiltration Field | D108: ='1. ENTER DATA'!F73 -> Infiltration Field | E108: ='1. ENTER DATA'!G73 -> Infiltration Field | F108: ='1. ENTER DATA'!H73 -> Infiltration Field
A109: COD | B109: mg/L | C109: =MIN(IF(C$108="Alternative",'1. ENTER DATA'!E74,IF(OR(C$108="Infiltration Field",C$108="None",C$108="Beneficial Reuse"),C99,LOOKUP(C$108,$C$48:$G$48,$C49:$G49))),C99) -> 38.9 | D109: =MIN(IF(D$108="Alternative",'1. ENTER DATA'!F74,IF(OR(D$108="Infiltration Field",D$108="None",D$108="Beneficial Reuse"),D99,LOOKUP(D$108,$C$48:$G$48,$C49:$G49))),D99) -> 38.9 | E109: =MIN(IF(E$108="Alternative",'1. ENTER DATA'!G74,IF(OR(E$108="Infiltration Field",E$108="None",E$108="Beneficial Reuse"),E99,LOOKUP(E$108,$C$48:$G$48,$C49:$G49))),E99) -> 38.9 | F109: =MIN(IF(F$108="Alternative",'1. ENTER DATA'!H74,IF(OR(F$108="Infiltration Field",F$108="None",F$108="Beneficial Reuse"),F99,LOOKUP(F$108,$C$48:$G$48,$C49:$G49))),F99) -> 38.9
A110: E. coli | B110: CFU/100mL | C110: =MIN(IF(C$108="Alternative",'1. ENTER DATA'!E75,IF(OR(C$108="Infiltration Field",C$108="None",C$108="Beneficial Reuse"),C100,LOOKUP(C$108,$C$48:$G$48,$C50:$G50))),C100) -> 11065 | D110: =MIN(IF(D$108="Alternative",'1. ENTER DATA'!F75,IF(OR(D$108="Infiltration Field",D$108="None",D$108="Beneficial Reuse"),D100,LOOKUP(D$108,$C$48:$G$48,$C50:$G50))),D100) -> 11065 | E110: =MIN(IF(E$108="Alternative",'1. ENTER DATA'!G75,IF(OR(E$108="Infiltration Field",E$108="None",E$108="Beneficial Reuse"),E100,LOOKUP(E$108,$C$48:$G$48,$C50:$G50))),E100) -> 11065 | F110: =MIN(IF(F$108="Alternative",'1. ENTER DATA'!H75,IF(OR(F$108="Infiltration Field",F$108="None",F$108="Beneficial Reuse"),F100,LOOKUP(F$108,$C$48:$G$48,$C50:$G50))),F100) -> 11065
A111: Pb | B111: mg/L | C111: =MIN(IF(C$108="Alternative",'1. ENTER DATA'!E76,IF(OR(C$108="Infiltration Field",C$108="None",C$108="Beneficial Reuse"),C101,LOOKUP(C$108,$C$48:$G$48,$C51:$G51))),C101) -> 0.004283 | D111: =MIN(IF(D$108="Alternative",'1. ENTER DATA'!F76,IF(OR(D$108="Infiltration Field",D$108="None",D$108="Beneficial Reuse"),D101,LOOKUP(D$108,$C$48:$G$48,$C51:$G51))),D101) -> 0.004283 | E111: =MIN(IF(E$108="Alternative",'1. ENTER DATA'!G76,IF(OR(E$108="Infiltration Field",E$108="None",E$108="Beneficial Reuse"),E101,LOOKUP(E$108,$C$48:$G$48,$C51:$G51))),E101) -> 0.004283 | F111: =MIN(IF(F$108="Alternative",'1. ENTER DATA'!H76,IF(OR(F$108="Infiltration Field",F$108="None",F$108="Beneficial Reuse"),F101,LOOKUP(F$108,$C$48:$G$48,$C51:$G51))),F101) -> 0.004283
A112: TN | B112: mg/L | C112: =MIN(IF(C$108="Alternative",'1. ENTER DATA'!E77,IF(OR(C$108="Infiltration Field",C$108="None",C$108="Beneficial Reuse"),C102,LOOKUP(C$108,$C$48:$G$48,$C52:$G52))),C102) -> 1.42 | D112: =MIN(IF(D$108="Alternative",'1. ENTER DATA'!F77,IF(OR(D$108="Infiltration Field",D$108="None",D$108="Beneficial Reuse"),D102,LOOKUP(D$108,$C$48:$G$48,$C52:$G52))),D102) -> 1.42 | E112: =MIN(IF(E$108="Alternative",'1. ENTER DATA'!G77,IF(OR(E$108="Infiltration Field",E$108="None",E$108="Beneficial Reuse"),E102,LOOKUP(E$108,$C$48:$G$48,$C52:$G52))),E102) -> 1.42 | F112: =MIN(IF(F$108="Alternative",'1. ENTER DATA'!H77,IF(OR(F$108="Infiltration Field",F$108="None",F$108="Beneficial Reuse"),F102,LOOKUP(F$108,$C$48:$G$48,$C52:$G52))),F102) -> 1.42
A113: TOC | B113: mg/L | C113: =MIN(IF(C$108="Alternative",'1. ENTER DATA'!E78,IF(OR(C$108="Infiltration Field",C$108="None",C$108="Beneficial Reuse"),C103,LOOKUP(C$108,$C$48:$G$48,$C53:$G53))),C103) -> 11.45 | D113: =MIN(IF(D$108="Alternative",'1. ENTER DATA'!F78,IF(OR(D$108="Infiltration Field",D$108="None",D$108="Beneficial Reuse"),D103,LOOKUP(D$108,$C$48:$G$48,$C53:$G53))),D103) -> 11.45 | E113: =MIN(IF(E$108="Alternative",'1. ENTER DATA'!G78,IF(OR(E$108="Infiltration Field",E$108="None",E$108="Beneficial Reuse"),E103,LOOKUP(E$108,$C$48:$G$48,$C53:$G53))),E103) -> 11.45 | F113: =MIN(IF(F$108="Alternative",'1. ENTER DATA'!H78,IF(OR(F$108="Infiltration Field",F$108="None",F$108="Beneficial Reuse"),F103,LOOKUP(F$108,$C$48:$G$48,$C53:$G53))),F103) -> 11.45
A114: TP | B114: mg/L | C114: =MIN(IF(C$108="Alternative",'1. ENTER DATA'!E79,IF(OR(C$108="Infiltration Field",C$108="None",C$108="Beneficial Reuse"),C104,LOOKUP(C$108,$C$48:$G$48,$C54:$G54))),C104) -> 0.224 | D114: =MIN(IF(D$108="Alternative",'1. ENTER DATA'!F79,IF(OR(D$108="Infiltration Field",D$108="None",D$108="Beneficial Reuse"),D104,LOOKUP(D$108,$C$48:$G$48,$C54:$G54))),D104) -> 0.224 | E114: =MIN(IF(E$108="Alternative",'1. ENTER DATA'!G79,IF(OR(E$108="Infiltration Field",E$108="None",E$108="Beneficial Reuse"),E104,LOOKUP(E$108,$C$48:$G$48,$C54:$G54))),E104) -> 0.224 | F114: =MIN(IF(F$108="Alternative",'1. ENTER DATA'!H79,IF(OR(F$108="Infiltration Field",F$108="None",F$108="Beneficial Reuse"),F104,LOOKUP(F$108,$C$48:$G$48,$C54:$G54))),F104) -> 0.224
A115: TSS | B115: mg/L | C115: =MIN(IF(C$108="Alternative",'1. ENTER DATA'!E80,IF(OR(C$108="Infiltration Field",C$108="None",C$108="Beneficial Reuse"),C105,LOOKUP(C$108,$C$48:$G$48,$C55:$G55))),C105) -> 133.8 | D115: =MIN(IF(D$108="Alternative",'1. ENTER DATA'!F80,IF(OR(D$108="Infiltration Field",D$108="None",D$108="Beneficial Reuse"),D105,LOOKUP(D$108,$C$48:$G$48,$C55:$G55))),D105) -> 133.8 | E115: =MIN(IF(E$108="Alternative",'1. ENTER DATA'!G80,IF(OR(E$108="Infiltration Field",E$108="None",E$108="Beneficial Reuse"),E105,LOOKUP(E$108,$C$48:$G$48,$C55:$G55))),E105) -> 133.8 | F115: =MIN(IF(F$108="Alternative",'1. ENTER DATA'!H80,IF(OR(F$108="Infiltration Field",F$108="None",F$108="Beneficial Reuse"),F105,LOOKUP(F$108,$C$48:$G$48,$C55:$G55))),F105) -> 133.8
A116: Zn | B116: mg/L | C116: =MIN(IF(C$108="Alternative",'1. ENTER DATA'!E81,IF(OR(C$108="Infiltration Field",C$108="None",C$108="Beneficial Reuse"),C106,LOOKUP(C$108,$C$48:$G$48,$C56:$G56))),C106) -> 0.023565 | D116: =MIN(IF(D$108="Alternative",'1. ENTER DATA'!F81,IF(OR(D$108="Infiltration Field",D$108="None",D$108="Beneficial Reuse"),D106,LOOKUP(D$108,$C$48:$G$48,$C56:$G56))),D106) -> 0.023565 | E116: =MIN(IF(E$108="Alternative",'1. ENTER DATA'!G81,IF(OR(E$108="Infiltration Field",E$108="None",E$108="Beneficial Reuse"),E106,LOOKUP(E$108,$C$48:$G$48,$C56:$G56))),E106) -> 0.023565 | F116: =MIN(IF(F$108="Alternative",'1. ENTER DATA'!H81,IF(OR(F$108="Infiltration Field",F$108="None",F$108="Beneficial Reuse"),F106,LOOKUP(F$108,$C$48:$G$48,$C56:$G56))),F106) -> 0.023565
A118: CALCULATE: Bypass Concentrations For Each SCM
C119: Drainage Area A | D119: Drainage Area B | E119: Drainage Area C | F119: Drainage Area D
C120: SCM A.1 | D120: SCM B.1 | E120: SCM C.1 | F120: SCM D.1
A121: Pollutant | B121: Units | C121: ='1. ENTER DATA'!E63 -> Retention Basin | D121: ='1. ENTER DATA'!F63 -> Retention Basin | E121: ='1. ENTER DATA'!G63 -> Retention Basin | F121: ='1. ENTER DATA'!H63 -> Retention Basin
A122: COD | B122: mg/L | C122: =IF(C$121="None",I37,MIN(I37,IF('1. ENTER DATA'!E$27="Yes (Off-Line)",C65,D65))) -> 24.95314833 | D122: =IF(D$121="None",J37,MIN(J37,IF('1. ENTER DATA'!F$27="Yes (Off-Line)",E65,F65))) -> 24.95314833 | E122: =IF(E$121="None",K37,MIN(K37,IF('1. ENTER DATA'!G$27="Yes (Off-Line)",G65,H65))) -> 24.95314833 | F122: =IF(F$121="None",L37,MIN(L37,IF('1. ENTER DATA'!H$27="Yes (Off-Line)",I65,J65))) -> 24.95314833
A123: E. coli | B123: CFU/100mL | C123: =IF(C$121="None",I38,MIN(I38,IF('1. ENTER DATA'!E$27="Yes (Off-Line)",C66,D66))) -> 8229.248687 | D123: =IF(D$121="None",J38,MIN(J38,IF('1. ENTER DATA'!F$27="Yes (Off-Line)",E66,F66))) -> 8229.248687 | E123: =IF(E$121="None",K38,MIN(K38,IF('1. ENTER DATA'!G$27="Yes (Off-Line)",G66,H66))) -> 8229.248687 | F123: =IF(F$121="None",L38,MIN(L38,IF('1. ENTER DATA'!H$27="Yes (Off-Line)",I66,J66))) -> 8229.248687
A124: Pb | B124: mg/L | C124: =IF(C$121="None",I39,MIN(I39,IF('1. ENTER DATA'!E$27="Yes (Off-Line)",C67,D67))) -> 0.004283 | D124: =IF(D$121="None",J39,MIN(J39,IF('1. ENTER DATA'!F$27="Yes (Off-Line)",E67,F67))) -> 0.004283 | E124: =IF(E$121="None",K39,MIN(K39,IF('1. ENTER DATA'!G$27="Yes (Off-Line)",G67,H67))) -> 0.004283 | F124: =IF(F$121="None",L39,MIN(L39,IF('1. ENTER DATA'!H$27="Yes (Off-Line)",I67,J67))) -> 0.004283
A125: TN | B125: mg/L | C125: =IF(C$121="None",I40,MIN(I40,IF('1. ENTER DATA'!E$27="Yes (Off-Line)",C68,D68))) -> 1.336293852 | D125: =IF(D$121="None",J40,MIN(J40,IF('1. ENTER DATA'!F$27="Yes (Off-Line)",E68,F68))) -> 1.336293852 | E125: =IF(E$121="None",K40,MIN(K40,IF('1. ENTER DATA'!G$27="Yes (Off-Line)",G68,H68))) -> 1.336293852 | F125: =IF(F$121="None",L40,MIN(L40,IF('1. ENTER DATA'!H$27="Yes (Off-Line)",I68,J68))) -> 1.336293852
A126: TOC | B126: mg/L | C126: =IF(C$121="None",I41,MIN(I41,IF('1. ENTER DATA'!E$27="Yes (Off-Line)",C69,D69))) -> 9.51148485 | D126: =IF(D$121="None",J41,MIN(J41,IF('1. ENTER DATA'!F$27="Yes (Off-Line)",E69,F69))) -> 9.51148485 | E126: =IF(E$121="None",K41,MIN(K41,IF('1. ENTER DATA'!G$27="Yes (Off-Line)",G69,H69))) -> 9.51148485 | F126: =IF(F$121="None",L41,MIN(L41,IF('1. ENTER DATA'!H$27="Yes (Off-Line)",I69,J69))) -> 9.51148485
A127: TP | B127: mg/L | C127: =IF(C$121="None",I42,MIN(I42,IF('1. ENTER DATA'!E$27="Yes (Off-Line)",C70,D70))) -> 0.1675204241 | D127: =IF(D$121="None",J42,MIN(J42,IF('1. ENTER DATA'!F$27="Yes (Off-Line)",E70,F70))) -> 0.1675204241 | E127: =IF(E$121="None",K42,MIN(K42,IF('1. ENTER DATA'!G$27="Yes (Off-Line)",G70,H70))) -> 0.1675204241 | F127: =IF(F$121="None",L42,MIN(L42,IF('1. ENTER DATA'!H$27="Yes (Off-Line)",I70,J70))) -> 0.1675204241
A128: TSS | B128: mg/L | C128: =IF(C$121="None",I43,MIN(I43,IF('1. ENTER DATA'!E$27="Yes (Off-Line)",C71,D71))) -> 19.18732683 | D128: =IF(D$121="None",J43,MIN(J43,IF('1. ENTER DATA'!F$27="Yes (Off-Line)",E71,F71))) -> 19.18732683 | E128: =IF(E$121="None",K43,MIN(K43,IF('1. ENTER DATA'!G$27="Yes (Off-Line)",G71,H71))) -> 19.18732683 | F128: =IF(F$121="None",L43,MIN(L43,IF('1. ENTER DATA'!H$27="Yes (Off-Line)",I71,J71))) -> 19.18732683
A129: Zn | B129: mg/L | C129: =IF(C$121="None",I44,MIN(I44,IF('1. ENTER DATA'!E$27="Yes (Off-Line)",C72,D72))) -> 0.023565 | D129: =IF(D$121="None",J44,MIN(J44,IF('1. ENTER DATA'!F$27="Yes (Off-Line)",E72,F72))) -> 0.023565 | E129: =IF(E$121="None",K44,MIN(K44,IF('1. ENTER DATA'!G$27="Yes (Off-Line)",G72,H72))) -> 0.023565 | F129: =IF(F$121="None",L44,MIN(L44,IF('1. ENTER DATA'!H$27="Yes (Off-Line)",I72,J72))) -> 0.023565
C130: SCM A.2 | D130: SCM B.2 | E130: SCM C.2 | F130: SCM D.2
A131: Pollutant | B131: Units | C131: ='1. ENTER DATA'!E73 -> Infiltration Field | D131: ='1. ENTER DATA'!F73 -> Infiltration Field | E131: ='1. ENTER DATA'!G73 -> Infiltration Field | F131: ='1. ENTER DATA'!H73 -> Infiltration Field
A132: COD | B132: mg/L | C132: =C99 -> 38.9 | D132: 38.9 | E132: 38.9 | F132: 38.9
A133: E. coli | B133: CFU/100mL | C133: 11065 | D133: 11065 | E133: 11065 | F133: 11065
A134: Pb | B134: mg/L | C134: 0.004283 | D134: 0.004283 | E134: 0.004283 | F134: 0.004283
A135: TN | B135: mg/L | C135: 1.42 | D135: 1.42 | E135: 1.42 | F135: 1.42
A136: TOC | B136: mg/L | C136: 11.45 | D136: 11.45 | E136: 11.45 | F136: 11.45
A137: TP | B137: mg/L | C137: 0.224 | D137: 0.224 | E137: 0.224 | F137: 0.224
A138: TSS | B138: mg/L | C138: 133.8 | D138: 133.8 | E138: 133.8 | F138: 133.8
A139: Zn | B139: mg/L | C139: 0.023565 | D139: 0.023565 | E139: 0.023565 | F139: 0.023565
A141: CALCULATE: SCM Volumes
C142: SCM A.1 | D142: SCM B.1 | E142: SCM C.1 | F142: SCM D.1
A143: Control is not "None"? | C143: =IF('1. ENTER DATA'!E26<>"None",1,0) -> 1 | D143: =IF('1. ENTER DATA'!F26<>"None",1,0) -> 1 | E143: =IF('1. ENTER DATA'!G26<>"None",1,0) -> 1 | F143: =IF('1. ENTER DATA'!H26<>"None",1,0) -> 1
A144: Volume treated by SCM 1 (in/yr) | C144: =RCE_A1/100*'3. CALCS_Loads'!C88*C143 -> 1.183962786 | D144: =RCE_B1/100*'3. CALCS_Loads'!D88*D143 -> 0 | E144: =RCE_C1/100*'3. CALCS_Loads'!E88*E143 -> 0 | F144: =RCE_D1/100*'3. CALCS_Loads'!F88*F143 -> 0
A145: Volume treated by SCM 1 (Ac-in/yr) | C145: =RCE_A1/100*'3. CALCS_Loads'!C89 -> 1.183962786 | D145: =RCE_B1/100*'3. CALCS_Loads'!D89 -> 0 | E145: =RCE_C1/100*'3. CALCS_Loads'!E89 -> 0 | F145: =RCE_D1/100*'3. CALCS_Loads'!F89 -> 0
A146: Bypass Volume (in/yr) | C146: ='3. CALCS_Loads'!C88-C144 -> 0.000555984587 | D146: ='3. CALCS_Loads'!D88-D144 -> 0 | E146: ='3. CALCS_Loads'!E88-E144 -> 0 | F146: ='3. CALCS_Loads'!F88-F144 -> 0
A147: Bypass Volume (Ac-in/yr) | C147: ='3. CALCS_Loads'!C89-C145 -> 0.000555984587 | D147: ='3. CALCS_Loads'!D89-D145 -> 0 | E147: ='3. CALCS_Loads'!E89-E145 -> 0 | F147: ='3. CALCS_Loads'!F89-F145 -> 0
C148: SCM A.2 | D148: SCM B.2 | E148: SCM C.2 | F148: SCM D.2
A149: Control is not "None"? | C149: =IF('1. ENTER DATA'!E45<>"None",1,0) -> 1 | D149: =IF('1. ENTER DATA'!F45<>"None",1,0) -> 1 | E149: =IF('1. ENTER DATA'!G45<>"None",1,0) -> 1 | F149: =IF('1. ENTER DATA'!H45<>"None",1,0) -> 1
A150: WQV Routed to SCM 2 (in) | C150: =C149*C143*C78*'1. ENTER DATA'!E46/100*IF('5.CALCS_Adams&Papa'!B28=0,0,WQV_A1) -> 2.5 | D150: =D149*D143*D78*'1. ENTER DATA'!F46/100*IF('5.CALCS_Adams&Papa'!B28=0,0,WQV_B1) -> 0 | E150: =E149*E143*E78*'1. ENTER DATA'!G46/100*IF('5.CALCS_Adams&Papa'!B28=0,0,WQV_C1) -> 0 | F150: =F149*F143*F78*'1. ENTER DATA'!H46/100*IF('5.CALCS_Adams&Papa'!B28=0,0,WQV_D1) -> 0
A151: Volume routed to SCM 2 (in/yr) | C151: ='5.CALCS_Adams&Papa'!B50*C78*C149*C143 -> 1.183962786 | D151: ='5.CALCS_Adams&Papa'!C50*D78*D149*D143 -> 0 | E151: ='5.CALCS_Adams&Papa'!D50*E78*E149*E143 -> 0 | F151: ='5.CALCS_Adams&Papa'!E50*F78*F149*F143 -> 0
A152: Volume routed to SCM 2 (Ac-in/yr) | C152: =C79*C151 -> 1.183962786 | D152: =D79*D151 -> 0 | E152: =E79*E151 -> 0 | F152: =F79*F151 -> 0
A153: WQV Infiltrated/reused (in) | C153: ='4. CALCS_Infiltration'!E21*C149*C143*C78 -> 2.5 | D153: =IF('1. ENTER DATA'!F49="Yes",'1. ENTER DATA'!F50,D150)*D149*D143*D78 -> 0 | E153: =IF('1. ENTER DATA'!G49="Yes",'1. ENTER DATA'!G50,E150)*E149*E143*E78 -> 0 | F153: =IF('1. ENTER DATA'!H49="Yes",'1. ENTER DATA'!H50,F150)*F149*F143*F78 -> 0
A154: Infiltrated Volume (in/yr) | C154: =C$78*IF('1. ENTER DATA'!E48="Yes",'4. CALCS_Infiltration'!E22,0)*C149*C143 -> 1.183962786 | D154: =D$78*IF('1. ENTER DATA'!F48="Yes",'4. CALCS_Infiltration'!F22,0)*D149*D143 -> 0 | E154: =E$78*IF('1. ENTER DATA'!G48="Yes",'4. CALCS_Infiltration'!G22,0)*E149*E143 -> 0 | F154: =F$78*IF('1. ENTER DATA'!H48="Yes",'4. CALCS_Infiltration'!H22,0)*F149*F143 -> 0
A155: Infiltrated Volume (Ac-in/yr) - for calcs | C155: =C79*C154 -> 1.183962786 | D155: =D79*D154 -> 0 | E155: =E79*E154 -> 0 | F155: =F79*F154 -> 0
A156: Non-infiltrated Volume Treated by SCM 2 (in/yr) | C156: =(C151-C154)*C149*C143 -> 0 | D156: =(D151-D154)*D149*D143 -> 0 | E156: =(E151-E154)*E149*E143 -> 0 | F156: =(F151-F154)*F149*F143 -> 0
A157: Non-infiltrated Volume Treated by SCM 2 (Acre-in/yr) | C157: =C79*C156 -> 0 | D157: =D79*D156 -> 0 | E157: =E79*E156 -> 0 | F157: =F79*F156 -> 0
A158: Volume treated by only SCM 1 (bypasses SCM 2) (in/yr) | C158: =('3. CALCS_Loads'!C144-'3. CALCS_Loads'!C151)*C143 -> 2.220446049e-16 | D158: =('3. CALCS_Loads'!D144-'3. CALCS_Loads'!D151)*D143 -> 0 | E158: =('3. CALCS_Loads'!E144-'3. CALCS_Loads'!E151)*E143 -> 0 | F158: =('3. CALCS_Loads'!F144-'3. CALCS_Loads'!F151)*F143 -> 0
A159: Volume treated by only SCM 1 (bypasses SCM 2) (Acre-in/yr) | C159: =('3. CALCS_Loads'!C145-'3. CALCS_Loads'!C152)*C143 -> 2.220446049e-16 | D159: =('3. CALCS_Loads'!D145-'3. CALCS_Loads'!D152)*D143 -> 0 | E159: =('3. CALCS_Loads'!E145-'3. CALCS_Loads'!E152)*E143 -> 0 | F159: =('3. CALCS_Loads'!F145-'3. CALCS_Loads'!F152)*F143 -> 0
A162: CALCULATE: Developed, Existing, and Sed/Fil Loadings - For Results Table
B163: POLLUTANT EFFLUENT LOADS, lb/(yr) or 10^6 MPN/(yr) | AD163: Total Site EXISTING Load, L_ex | AE163: Total Site SED/FIL Load, L_sf | AF163: Total Site BYPASSED Load, L_un | AG163: Total Site DEVELOPED, TREATED Load, L_out | AH163: Compliance Factor | AI163: Compliance Factor | AJ163: BSZ COMPLIANT? Is L_out<L_base? | AK163: Non-BSZ COMPLIANT? Is L_out<L_sf?
B164: SCM 1 All Effluent | F164: SCM 1 Effluent that Bypasses SCM 2 | J164: SCM 2 Effluent | N164: Bypasses Both SCMs | R164: Existing | V164: Sed/Fil Equivalent | Z164: Developed (Treated) Load | AH164: Compare to Existing | AI164: Compare to Sed/Fil
A165: POLLUTANT | B165: SCM A1 | C165: SCM B1 | D165: SCM C1 | E165: SCM D1 | F165: SCM A1 | G165: SCM B1 | H165: SCM C1 | I165: SCM D1 | J165: SCM A2 | K165: SCM B2 | L165: SCM C2 | M165: SCM D1 | N165: Drainage Area A | O165: Drainage Area B | P165: Drainage Area C | Q165: Drainage Area D | R165: Drainage Area A | S165: Drainage Area B | T165: Drainage Area C | U165: Drainage Area D | V165: Drainage Area A | W165: Drainage Area B | X165: Drainage Area C | Y165: Drainage Area D | Z165: Drainage Area A | AA165: Drainage Area B | AB165: Drainage Area C | AC165: Drainage Area D | AD165: lb/(yr) or 10^6 MPN/(yr) | AE165: lb/(yr) or 10^6 MPN/(yr) | AF165: lb/(yr) or 10^6 MPN/(yr) | AG165: lb/(yr) or 10^6 MPN/(yr)
A166: COD | B166: ='3. CALCS_Loads'!C$145*'3. CALCS_Loads'!C99*IF(LOOKUP($A166,'3. CALCS_Loads'!$A$37:$A$44,'3. CALCS_Loads'!$C$37:$C$44)="CF_1",CF_1,CF_2) -> 10.44092975 | C166: ='3. CALCS_Loads'!D$145*'3. CALCS_Loads'!D99*IF(LOOKUP($A166,'3. CALCS_Loads'!$A$37:$A$44,'3. CALCS_Loads'!$C$37:$C$44)="CF_1",CF_1,CF_2) -> 0 | D166: ='3. CALCS_Loads'!E$145*'3. CALCS_Loads'!E99*IF(LOOKUP($A166,'3. CALCS_Loads'!$A$37:$A$44,'3. CALCS_Loads'!$C$37:$C$44)="CF_1",CF_1,CF_2) -> 0 | E166: ='3. CALCS_Loads'!F$145*'3. CALCS_Loads'!F99*IF(LOOKUP($A166,'3. CALCS_Loads'!$A$37:$A$44,'3. CALCS_Loads'!$C$37:$C$44)="CF_1",CF_1,CF_2) -> 0 | F166: ='3. CALCS_Loads'!C$159*'3. CALCS_Loads'!C132*IF(LOOKUP($A166,'3. CALCS_Loads'!$A$37:$A$44,'3. CALCS_Loads'!$C$37:$C$44)="CF_1",CF_1,CF_2) -> 1.958129214e-15 | G166: ='3. CALCS_Loads'!D$159*'3. CALCS_Loads'!D132*IF(LOOKUP($A166,'3. CALCS_Loads'!$A$37:$A$44,'3. CALCS_Loads'!$C$37:$C$44)="CF_1",CF_1,CF_2) -> 0 | H166: ='3. CALCS_Loads'!E$159*'3. CALCS_Loads'!E132*IF(LOOKUP($A166,'3. CALCS_Loads'!$A$37:$A$44,'3. CALCS_Loads'!$C$37:$C$44)="CF_1",CF_1,CF_2) -> 0 | I166: ='3. CALCS_Loads'!F$159*'3. CALCS_Loads'!F132*IF(LOOKUP($A166,'3. CALCS_Loads'!$A$37:$A$44,'3. CALCS_Loads'!$C$37:$C$44)="CF_1",CF_1,CF_2) -> 0 | J166: ='3. CALCS_Loads'!C$157*'3. CALCS_Loads'!C109*IF(LOOKUP($A166,'3. CALCS_Loads'!$A$37:$A$44,'3. CALCS_Loads'!$C$37:$C$44)="CF_1",CF_1,CF_2) -> 0 | K166: ='3. CALCS_Loads'!D$157*'3. CALCS_Loads'!D109*IF(LOOKUP($A166,'3. CALCS_Loads'!$A$37:$A$44,'3. CALCS_Loads'!$C$37:$C$44)="CF_1",CF_1,CF_2) -> 0 | L166: ='3. CALCS_Loads'!E$157*'3. CALCS_Loads'!E109*IF(LOOKUP($A166,'3. CALCS_Loads'!$A$37:$A$44,'3. CALCS_Loads'!$C$37:$C$44)="CF_1",CF_1,CF_2) -> 0 | M166: ='3. CALCS_Loads'!F$157*'3. CALCS_Loads'!F109*IF(LOOKUP($A166,'3. CALCS_Loads'!$A$37:$A$44,'3. CALCS_Loads'!$C$37:$C$44)="CF_1",CF_1,CF_2) -> 0 | N166: ='3. CALCS_Loads'!C$147*'3. CALCS_Loads'!C122*IF(LOOKUP($A166,'3. CALCS_Loads'!$A$37:$A$44,'3. CALCS_Loads'!$C$37:$C$44)="CF_1",CF_1,CF_2) -> 0.003145137383 | O166: ='3. CALCS_Loads'!D$147*'3. CALCS_Loads'!D122*IF(LOOKUP($A166,'3. CALCS_Loads'!$A$37:$A$44,'3. CALCS_Loads'!$C$37:$C$44)="CF_1",CF_1,CF_2) -> 0 | P166: ='3. CALCS_Loads'!E$147*'3. CALCS_Loads'!E122*IF(LOOKUP($A166,'3. CALCS_Loads'!$A$37:$A$44,'3. CALCS_Loads'!$C$37:$C$44)="CF_1",CF_1,CF_2) -> 0 | Q166: ='3. CALCS_Loads'!F$147*'3. CALCS_Loads'!F122*IF(LOOKUP($A166,'3. CALCS_Loads'!$A$37:$A$44,'3. CALCS_Loads'!$C$37:$C$44)="CF_1",CF_1,CF_2) -> 0 | R166: ='3. CALCS_Loads'!E37*C$84*IF(LOOKUP($A166,'3. CALCS_Loads'!$A$37:$A$44,'3. CALCS_Loads'!$C$37:$C$44)="CF_1",CF_1,CF_2) -> 10.44583277 | S166: ='3. CALCS_Loads'!F37*D$84*IF(LOOKUP($A166,'3. CALCS_Loads'!$A$37:$A$44,'3. CALCS_Loads'!$C$37:$C$44)="CF_1",CF_1,CF_2) -> 0 | T166: ='3. CALCS_Loads'!G37*E$84*IF(LOOKUP($A166,'3. CALCS_Loads'!$A$37:$A$44,'3. CALCS_Loads'!$C$37:$C$44)="CF_1",CF_1,CF_2) -> 0 | U166: ='3. CALCS_Loads'!H37*F$84*IF(LOOKUP($A166,'3. CALCS_Loads'!$A$37:$A$44,'3. CALCS_Loads'!$C$37:$C$44)="CF_1",CF_1,CF_2) -> 0 | V166: =('5.CALCS_Adams&Papa'!G$39*'3. CALCS_Loads'!$F49+'5.CALCS_Adams&Papa'!G$40*'3. CALCS_Loads'!K65)*IF(LOOKUP($A166,'3. CALCS_Loads'!$A$37:$A$44,'3. CALCS_Loads'!$C$37:$C$44)="CF_1",CF_1,CF_2)*C$78 -> 6.066074724 | W166: =('5.CALCS_Adams&Papa'!H$39*'3. CALCS_Loads'!$F49+'5.CALCS_Adams&Papa'!H$40*'3. CALCS_Loads'!L65)*IF(LOOKUP($A166,'3. CALCS_Loads'!$A$37:$A$44,'3. CALCS_Loads'!$C$37:$C$44)="CF_1",CF_1,CF_2)*D$78 -> 0 | X166: =('5.CALCS_Adams&Papa'!I$39*'3. CALCS_Loads'!$F49+'5.CALCS_Adams&Papa'!I$40*'3. CALCS_Loads'!M65)*IF(LOOKUP($A166,'3. CALCS_Loads'!$A$37:$A$44,'3. CALCS_Loads'!$C$37:$C$44)="CF_1",CF_1,CF_2)*E$78 -> 0 | Y166: =('5.CALCS_Adams&Papa'!J$39*'3. CALCS_Loads'!$F49+'5.CALCS_Adams&Papa'!J$40*'3. CALCS_Loads'!N65)*IF(LOOKUP($A166,'3. CALCS_Loads'!$A$37:$A$44,'3. CALCS_Loads'!$C$37:$C$44)="CF_1",CF_1,CF_2)*F$78 -> 0 | Z166: =F166+J166+N166 -> 0.003145137383 | AA166: 0 | AB166: 0 | AC166: 0 | AD166: =SUM(R166:U166) -> 10.44583277 | AE166: =SUM(V166:Y166) -> 6.066074724 | AF166: =SUM(N166:Q166) -> 0.003145137383 | AG166: =SUM(Z166:AC166) -> 0.003145137383 | AH166: =AG166/AD166 -> 0.0003010901526 | AI166: =AG166/AE166 -> 0.0005184798286 | AJ166: =IF(AH166<=1,"YES","NO") -> YES | AK166: =IF(AI166<=1,"YES","NO") -> YES
A167: E. coli | B167: ='3. CALCS_Loads'!C$145*'3. CALCS_Loads'!C100*IF(LOOKUP($A167,'3. CALCS_Loads'!$A$37:$A$44,'3. CALCS_Loads'!$C$37:$C$44)="CF_1",CF_1,CF_2) -> 13466.05353 | C167: ='3. CALCS_Loads'!D$145*'3. CALCS_Loads'!D100*IF(LOOKUP($A167,'3. CALCS_Loads'!$A$37:$A$44,'3. CALCS_Loads'!$C$37:$C$44)="CF_1",CF_1,CF_2) -> 0 | D167: ='3. CALCS_Loads'!E$145*'3. CALCS_Loads'!E100*IF(LOOKUP($A167,'3. CALCS_Loads'!$A$37:$A$44,'3. CALCS_Loads'!$C$37:$C$44)="CF_1",CF_1,CF_2) -> 0 | E167: ='3. CALCS_Loads'!F$145*'3. CALCS_Loads'!F100*IF(LOOKUP($A167,'3. CALCS_Loads'!$A$37:$A$44,'3. CALCS_Loads'!$C$37:$C$44)="CF_1",CF_1,CF_2) -> 0 | F167: ='3. CALCS_Loads'!C$159*'3. CALCS_Loads'!C133*IF(LOOKUP($A167,'3. CALCS_Loads'!$A$37:$A$44,'3. CALCS_Loads'!$C$37:$C$44)="CF_1",CF_1,CF_2) -> 2.525471721e-12 | G167: ='3. CALCS_Loads'!D$159*'3. CALCS_Loads'!D133*IF(LOOKUP($A167,'3. CALCS_Loads'!$A$37:$A$44,'3. CALCS_Loads'!$C$37:$C$44)="CF_1",CF_1,CF_2) -> 0 | H167: ='3. CALCS_Loads'!E$159*'3. CALCS_Loads'!E133*IF(LOOKUP($A167,'3. CALCS_Loads'!$A$37:$A$44,'3. CALCS_Loads'!$C$37:$C$44)="CF_1",CF_1,CF_2) -> 0 | I167: ='3. CALCS_Loads'!F$159*'3. CALCS_Loads'!F133*IF(LOOKUP($A167,'3. CALCS_Loads'!$A$37:$A$44,'3. CALCS_Loads'!$C$37:$C$44)="CF_1",CF_1,CF_2) -> 0 | J167: ='3. CALCS_Loads'!C$157*'3. CALCS_Loads'!C110*IF(LOOKUP($A167,'3. CALCS_Loads'!$A$37:$A$44,'3. CALCS_Loads'!$C$37:$C$44)="CF_1",CF_1,CF_2) -> 0 | K167: ='3. CALCS_Loads'!D$157*'3. CALCS_Loads'!D110*IF(LOOKUP($A167,'3. CALCS_Loads'!$A$37:$A$44,'3. CALCS_Loads'!$C$37:$C$44)="CF_1",CF_1,CF_2) -> 0 | L167: ='3. CALCS_Loads'!E$157*'3. CALCS_Loads'!E110*IF(LOOKUP($A167,'3. CALCS_Loads'!$A$37:$A$44,'3. CALCS_Loads'!$C$37:$C$44)="CF_1",CF_1,CF_2) -> 0 | M167: ='3. CALCS_Loads'!F$157*'3. CALCS_Loads'!F110*IF(LOOKUP($A167,'3. CALCS_Loads'!$A$37:$A$44,'3. CALCS_Loads'!$C$37:$C$44)="CF_1",CF_1,CF_2) -> 0 | N167: ='3. CALCS_Loads'!C$147*'3. CALCS_Loads'!C123*IF(LOOKUP($A167,'3. CALCS_Loads'!$A$37:$A$44,'3. CALCS_Loads'!$C$37:$C$44)="CF_1",CF_1,CF_2) -> 4.702987291 | O167: ='3. CALCS_Loads'!D$147*'3. CALCS_Loads'!D123*IF(LOOKUP($A167,'3. CALCS_Loads'!$A$37:$A$44,'3. CALCS_Loads'!$C$37:$C$44)="CF_1",CF_1,CF_2) -> 0 | P167: ='3. CALCS_Loads'!E$147*'3. CALCS_Loads'!E123*IF(LOOKUP($A167,'3. CALCS_Loads'!$A$37:$A$44,'3. CALCS_Loads'!$C$37:$C$44)="CF_1",CF_1,CF_2) -> 0 | Q167: ='3. CALCS_Loads'!F$147*'3. CALCS_Loads'!F123*IF(LOOKUP($A167,'3. CALCS_Loads'!$A$37:$A$44,'3. CALCS_Loads'!$C$37:$C$44)="CF_1",CF_1,CF_2) -> 0 | R167: ='3. CALCS_Loads'!E38*C$84*IF(LOOKUP($A167,'3. CALCS_Loads'!$A$37:$A$44,'3. CALCS_Loads'!$C$37:$C$44)="CF_1",CF_1,CF_2) -> 10193.46962 | S167: ='3. CALCS_Loads'!F38*D$84*IF(LOOKUP($A167,'3. CALCS_Loads'!$A$37:$A$44,'3. CALCS_Loads'!$C$37:$C$44)="CF_1",CF_1,CF_2) -> 0 | T167: ='3. CALCS_Loads'!G38*E$84*IF(LOOKUP($A167,'3. CALCS_Loads'!$A$37:$A$44,'3. CALCS_Loads'!$C$37:$C$44)="CF_1",CF_1,CF_2) -> 0 | U167: ='3. CALCS_Loads'!H38*F$84*IF(LOOKUP($A167,'3. CALCS_Loads'!$A$37:$A$44,'3. CALCS_Loads'!$C$37:$C$44)="CF_1",CF_1,CF_2) -> 0 | V167: =('5.CALCS_Adams&Papa'!G$39*'3. CALCS_Loads'!$F50+'5.CALCS_Adams&Papa'!G$40*'3. CALCS_Loads'!K66)*IF(LOOKUP($A167,'3. CALCS_Loads'!$A$37:$A$44,'3. CALCS_Loads'!$C$37:$C$44)="CF_1",CF_1,CF_2)*C$78 -> 6038.695396 | W167: =('5.CALCS_Adams&Papa'!H$39*'3. CALCS_Loads'!$F50+'5.CALCS_Adams&Papa'!H$40*'3. CALCS_Loads'!L66)*IF(LOOKUP($A167,'3. CALCS_Loads'!$A$37:$A$44,'3. CALCS_Loads'!$C$37:$C$44)="CF_1",CF_1,CF_2)*D$78 -> 0 | X167: =('5.CALCS_Adams&Papa'!I$39*'3. CALCS_Loads'!$F50+'5.CALCS_Adams&Papa'!I$40*'3. CALCS_Loads'!M66)*IF(LOOKUP($A167,'3. CALCS_Loads'!$A$37:$A$44,'3. CALCS_Loads'!$C$37:$C$44)="CF_1",CF_1,CF_2)*E$78 -> 0 | Y167: =('5.CALCS_Adams&Papa'!J$39*'3. CALCS_Loads'!$F50+'5.CALCS_Adams&Papa'!J$40*'3. CALCS_Loads'!N66)*IF(LOOKUP($A167,'3. CALCS_Loads'!$A$37:$A$44,'3. CALCS_Loads'!$C$37:$C$44)="CF_1",CF_1,CF_2)*F$78 -> 0 | Z167: 4.702987291 | AA167: 0 | AB167: 0 | AC167: 0 | AD167: 10193.46962 | AE167: 6038.695396 | AF167: 4.702987291 | AG167: 4.702987291 | AH167: 0.0004613725713 | AI167: 0.0007788084979 | AJ167: =IF(AH167<=1,"YES","NO") -> YES | AK167: =IF(AI167<=1,"YES","NO") -> YES
A168: Pb | B168: ='3. CALCS_Loads'!C$145*'3. CALCS_Loads'!C101*IF(LOOKUP($A168,'3. CALCS_Loads'!$A$37:$A$44,'3. CALCS_Loads'!$C$37:$C$44)="CF_1",CF_1,CF_2) -> 0.00114957589 | C168: ='3. CALCS_Loads'!D$145*'3. CALCS_Loads'!D101*IF(LOOKUP($A168,'3. CALCS_Loads'!$A$37:$A$44,'3. CALCS_Loads'!$C$37:$C$44)="CF_1",CF_1,CF_2) -> 0 | D168: ='3. CALCS_Loads'!E$145*'3. CALCS_Loads'!E101*IF(LOOKUP($A168,'3. CALCS_Loads'!$A$37:$A$44,'3. CALCS_Loads'!$C$37:$C$44)="CF_1",CF_1,CF_2) -> 0 | E168: ='3. CALCS_Loads'!F$145*'3. CALCS_Loads'!F101*IF(LOOKUP($A168,'3. CALCS_Loads'!$A$37:$A$44,'3. CALCS_Loads'!$C$37:$C$44)="CF_1",CF_1,CF_2) -> 0 | F168: ='3. CALCS_Loads'!C$159*'3. CALCS_Loads'!C134*IF(LOOKUP($A168,'3. CALCS_Loads'!$A$37:$A$44,'3. CALCS_Loads'!$C$37:$C$44)="CF_1",CF_1,CF_2) -> 2.155955636e-19 | G168: ='3. CALCS_Loads'!D$159*'3. CALCS_Loads'!D134*IF(LOOKUP($A168,'3. CALCS_Loads'!$A$37:$A$44,'3. CALCS_Loads'!$C$37:$C$44)="CF_1",CF_1,CF_2) -> 0 | H168: ='3. CALCS_Loads'!E$159*'3. CALCS_Loads'!E134*IF(LOOKUP($A168,'3. CALCS_Loads'!$A$37:$A$44,'3. CALCS_Loads'!$C$37:$C$44)="CF_1",CF_1,CF_2) -> 0 | I168: ='3. CALCS_Loads'!F$159*'3. CALCS_Loads'!F134*IF(LOOKUP($A168,'3. CALCS_Loads'!$A$37:$A$44,'3. CALCS_Loads'!$C$37:$C$44)="CF_1",CF_1,CF_2) -> 0 | J168: ='3. CALCS_Loads'!C$157*'3. CALCS_Loads'!C111*IF(LOOKUP($A168,'3. CALCS_Loads'!$A$37:$A$44,'3. CALCS_Loads'!$C$37:$C$44)="CF_1",CF_1,CF_2) -> 0 | K168: ='3. CALCS_Loads'!D$157*'3. CALCS_Loads'!D111*IF(LOOKUP($A168,'3. CALCS_Loads'!$A$37:$A$44,'3. CALCS_Loads'!$C$37:$C$44)="CF_1",CF_1,CF_2) -> 0 | L168: ='3. CALCS_Loads'!E$157*'3. CALCS_Loads'!E111*IF(LOOKUP($A168,'3. CALCS_Loads'!$A$37:$A$44,'3. CALCS_Loads'!$C$37:$C$44)="CF_1",CF_1,CF_2) -> 0 | M168: ='3. CALCS_Loads'!F$157*'3. CALCS_Loads'!F111*IF(LOOKUP($A168,'3. CALCS_Loads'!$A$37:$A$44,'3. CALCS_Loads'!$C$37:$C$44)="CF_1",CF_1,CF_2) -> 0 | N168: ='3. CALCS_Loads'!C$147*'3. CALCS_Loads'!C124*IF(LOOKUP($A168,'3. CALCS_Loads'!$A$37:$A$44,'3. CALCS_Loads'!$C$37:$C$44)="CF_1",CF_1,CF_2) -> 5.398366262e-07 | O168: ='3. CALCS_Loads'!D$147*'3. CALCS_Loads'!D124*IF(LOOKUP($A168,'3. CALCS_Loads'!$A$37:$A$44,'3. CALCS_Loads'!$C$37:$C$44)="CF_1",CF_1,CF_2) -> 0 | P168: ='3. CALCS_Loads'!E$147*'3. CALCS_Loads'!E124*IF(LOOKUP($A168,'3. CALCS_Loads'!$A$37:$A$44,'3. CALCS_Loads'!$C$37:$C$44)="CF_1",CF_1,CF_2) -> 0 | Q168: ='3. CALCS_Loads'!F$147*'3. CALCS_Loads'!F124*IF(LOOKUP($A168,'3. CALCS_Loads'!$A$37:$A$44,'3. CALCS_Loads'!$C$37:$C$44)="CF_1",CF_1,CF_2) -> 0 | R168: ='3. CALCS_Loads'!E39*C$84*IF(LOOKUP($A168,'3. CALCS_Loads'!$A$37:$A$44,'3. CALCS_Loads'!$C$37:$C$44)="CF_1",CF_1,CF_2) -> 0.001150115726 | S168: ='3. CALCS_Loads'!F39*D$84*IF(LOOKUP($A168,'3. CALCS_Loads'!$A$37:$A$44,'3. CALCS_Loads'!$C$37:$C$44)="CF_1",CF_1,CF_2) -> 0 | T168: ='3. CALCS_Loads'!G39*E$84*IF(LOOKUP($A168,'3. CALCS_Loads'!$A$37:$A$44,'3. CALCS_Loads'!$C$37:$C$44)="CF_1",CF_1,CF_2) -> 0 | U168: ='3. CALCS_Loads'!H39*F$84*IF(LOOKUP($A168,'3. CALCS_Loads'!$A$37:$A$44,'3. CALCS_Loads'!$C$37:$C$44)="CF_1",CF_1,CF_2) -> 0 | V168: =('5.CALCS_Adams&Papa'!G$39*'3. CALCS_Loads'!$F51+'5.CALCS_Adams&Papa'!G$40*'3. CALCS_Loads'!K67)*IF(LOOKUP($A168,'3. CALCS_Loads'!$A$37:$A$44,'3. CALCS_Loads'!$C$37:$C$44)="CF_1",CF_1,CF_2)*C$78 -> 0.00155032959 | W168: =('5.CALCS_Adams&Papa'!H$39*'3. CALCS_Loads'!$F51+'5.CALCS_Adams&Papa'!H$40*'3. CALCS_Loads'!L67)*IF(LOOKUP($A168,'3. CALCS_Loads'!$A$37:$A$44,'3. CALCS_Loads'!$C$37:$C$44)="CF_1",CF_1,CF_2)*D$78 -> 0 | X168: =('5.CALCS_Adams&Papa'!I$39*'3. CALCS_Loads'!$F51+'5.CALCS_Adams&Papa'!I$40*'3. CALCS_Loads'!M67)*IF(LOOKUP($A168,'3. CALCS_Loads'!$A$37:$A$44,'3. CALCS_Loads'!$C$37:$C$44)="CF_1",CF_1,CF_2)*E$78 -> 0 | Y168: =('5.CALCS_Adams&Papa'!J$39*'3. CALCS_Loads'!$F51+'5.CALCS_Adams&Papa'!J$40*'3. CALCS_Loads'!N67)*IF(LOOKUP($A168,'3. CALCS_Loads'!$A$37:$A$44,'3. CALCS_Loads'!$C$37:$C$44)="CF_1",CF_1,CF_2)*F$78 -> 0 | Z168: 5.398366262e-07 | AA168: 0 | AB168: 0 | AC168: 0 | AD168: 0.001150115726 | AE168: 0.00155032959 | AF168: 5.398366262e-07 | AG168: 5.398366262e-07 | AH168: 0.0004693759192 | AI168: 0.0003482076519 | AJ168: YES | AK168: YES
A169: TN | B169: ='3. CALCS_Loads'!C$145*'3. CALCS_Loads'!C102*IF(LOOKUP($A169,'3. CALCS_Loads'!$A$37:$A$44,'3. CALCS_Loads'!$C$37:$C$44)="CF_1",CF_1,CF_2) -> 0.3811341964 | C169: ='3. CALCS_Loads'!D$145*'3. CALCS_Loads'!D102*IF(LOOKUP($A169,'3. CALCS_Loads'!$A$37:$A$44,'3. CALCS_Loads'!$C$37:$C$44)="CF_1",CF_1,CF_2) -> 0 | D169: ='3. CALCS_Loads'!E$145*'3. CALCS_Loads'!E102*IF(LOOKUP($A169,'3. CALCS_Loads'!$A$37:$A$44,'3. CALCS_Loads'!$C$37:$C$44)="CF_1",CF_1,CF_2) -> 0 | E169: ='3. CALCS_Loads'!F$145*'3. CALCS_Loads'!F102*IF(LOOKUP($A169,'3. CALCS_Loads'!$A$37:$A$44,'3. CALCS_Loads'!$C$37:$C$44)="CF_1",CF_1,CF_2) -> 0 | F169: ='3. CALCS_Loads'!C$159*'3. CALCS_Loads'!C135*IF(LOOKUP($A169,'3. CALCS_Loads'!$A$37:$A$44,'3. CALCS_Loads'!$C$37:$C$44)="CF_1",CF_1,CF_2) -> 7.147926695e-17 | G169: ='3. CALCS_Loads'!D$159*'3. CALCS_Loads'!D135*IF(LOOKUP($A169,'3. CALCS_Loads'!$A$37:$A$44,'3. CALCS_Loads'!$C$37:$C$44)="CF_1",CF_1,CF_2) -> 0 | H169: ='3. CALCS_Loads'!E$159*'3. CALCS_Loads'!E135*IF(LOOKUP($A169,'3. CALCS_Loads'!$A$37:$A$44,'3. CALCS_Loads'!$C$37:$C$44)="CF_1",CF_1,CF_2) -> 0 | I169: ='3. CALCS_Loads'!F$159*'3. CALCS_Loads'!F135*IF(LOOKUP($A169,'3. CALCS_Loads'!$A$37:$A$44,'3. CALCS_Loads'!$C$37:$C$44)="CF_1",CF_1,CF_2) -> 0 | J169: ='3. CALCS_Loads'!C$157*'3. CALCS_Loads'!C112*IF(LOOKUP($A169,'3. CALCS_Loads'!$A$37:$A$44,'3. CALCS_Loads'!$C$37:$C$44)="CF_1",CF_1,CF_2) -> 0 | K169: ='3. CALCS_Loads'!D$157*'3. CALCS_Loads'!D112*IF(LOOKUP($A169,'3. CALCS_Loads'!$A$37:$A$44,'3. CALCS_Loads'!$C$37:$C$44)="CF_1",CF_1,CF_2) -> 0 | L169: ='3. CALCS_Loads'!E$157*'3. CALCS_Loads'!E112*IF(LOOKUP($A169,'3. CALCS_Loads'!$A$37:$A$44,'3. CALCS_Loads'!$C$37:$C$44)="CF_1",CF_1,CF_2) -> 0 | M169: ='3. CALCS_Loads'!F$157*'3. CALCS_Loads'!F112*IF(LOOKUP($A169,'3. CALCS_Loads'!$A$37:$A$44,'3. CALCS_Loads'!$C$37:$C$44)="CF_1",CF_1,CF_2) -> 0 | N169: ='3. CALCS_Loads'!C$147*'3. CALCS_Loads'!C125*IF(LOOKUP($A169,'3. CALCS_Loads'!$A$37:$A$44,'3. CALCS_Loads'!$C$37:$C$44)="CF_1",CF_1,CF_2) -> 0.0001684287566 | O169: ='3. CALCS_Loads'!D$147*'3. CALCS_Loads'!D125*IF(LOOKUP($A169,'3. CALCS_Loads'!$A$37:$A$44,'3. CALCS_Loads'!$C$37:$C$44)="CF_1",CF_1,CF_2) -> 0 | P169: ='3. CALCS_Loads'!E$147*'3. CALCS_Loads'!E125*IF(LOOKUP($A169,'3. CALCS_Loads'!$A$37:$A$44,'3. CALCS_Loads'!$C$37:$C$44)="CF_1",CF_1,CF_2) -> 0 | Q169: ='3. CALCS_Loads'!F$147*'3. CALCS_Loads'!F125*IF(LOOKUP($A169,'3. CALCS_Loads'!$A$37:$A$44,'3. CALCS_Loads'!$C$37:$C$44)="CF_1",CF_1,CF_2) -> 0 | R169: ='3. CALCS_Loads'!E40*C$84*IF(LOOKUP($A169,'3. CALCS_Loads'!$A$37:$A$44,'3. CALCS_Loads'!$C$37:$C$44)="CF_1",CF_1,CF_2) -> 0.3195511824 | S169: ='3. CALCS_Loads'!F40*D$84*IF(LOOKUP($A169,'3. CALCS_Loads'!$A$37:$A$44,'3. CALCS_Loads'!$C$37:$C$44)="CF_1",CF_1,CF_2) -> 0 | T169: ='3. CALCS_Loads'!G40*E$84*IF(LOOKUP($A169,'3. CALCS_Loads'!$A$37:$A$44,'3. CALCS_Loads'!$C$37:$C$44)="CF_1",CF_1,CF_2) -> 0 | U169: ='3. CALCS_Loads'!H40*F$84*IF(LOOKUP($A169,'3. CALCS_Loads'!$A$37:$A$44,'3. CALCS_Loads'!$C$37:$C$44)="CF_1",CF_1,CF_2) -> 0 | V169: =('5.CALCS_Adams&Papa'!G$39*'3. CALCS_Loads'!$F52+'5.CALCS_Adams&Papa'!G$40*'3. CALCS_Loads'!K68)*IF(LOOKUP($A169,'3. CALCS_Loads'!$A$37:$A$44,'3. CALCS_Loads'!$C$37:$C$44)="CF_1",CF_1,CF_2)*C$78 -> 0.2886437191 | W169: =('5.CALCS_Adams&Papa'!H$39*'3. CALCS_Loads'!$F52+'5.CALCS_Adams&Papa'!H$40*'3. CALCS_Loads'!L68)*IF(LOOKUP($A169,'3. CALCS_Loads'!$A$37:$A$44,'3. CALCS_Loads'!$C$37:$C$44)="CF_1",CF_1,CF_2)*D$78 -> 0 | X169: =('5.CALCS_Adams&Papa'!I$39*'3. CALCS_Loads'!$F52+'5.CALCS_Adams&Papa'!I$40*'3. CALCS_Loads'!M68)*IF(LOOKUP($A169,'3. CALCS_Loads'!$A$37:$A$44,'3. CALCS_Loads'!$C$37:$C$44)="CF_1",CF_1,CF_2)*E$78 -> 0 | Y169: =('5.CALCS_Adams&Papa'!J$39*'3. CALCS_Loads'!$F52+'5.CALCS_Adams&Papa'!J$40*'3. CALCS_Loads'!N68)*IF(LOOKUP($A169,'3. CALCS_Loads'!$A$37:$A$44,'3. CALCS_Loads'!$C$37:$C$44)="CF_1",CF_1,CF_2)*F$78 -> 0 | Z169: 0.0001684287566 | AA169: 0 | AB169: 0 | AC169: 0 | AD169: 0.3195511824 | AE169: 0.2886437191 | AF169: 0.0001684287566 | AG169: 0.0001684287566 | AH169: 0.000527079122 | AI169: 0.0005835178301 | AJ169: YES | AK169: YES
A170: TOC | B170: ='3. CALCS_Loads'!C$145*'3. CALCS_Loads'!C103*IF(LOOKUP($A170,'3. CALCS_Loads'!$A$37:$A$44,'3. CALCS_Loads'!$C$37:$C$44)="CF_1",CF_1,CF_2) -> 3.073229964 | C170: ='3. CALCS_Loads'!D$145*'3. CALCS_Loads'!D103*IF(LOOKUP($A170,'3. CALCS_Loads'!$A$37:$A$44,'3. CALCS_Loads'!$C$37:$C$44)="CF_1",CF_1,CF_2) -> 0 | D170: ='3. CALCS_Loads'!E$145*'3. CALCS_Loads'!E103*IF(LOOKUP($A170,'3. CALCS_Loads'!$A$37:$A$44,'3. CALCS_Loads'!$C$37:$C$44)="CF_1",CF_1,CF_2) -> 0 | E170: ='3. CALCS_Loads'!F$145*'3. CALCS_Loads'!F103*IF(LOOKUP($A170,'3. CALCS_Loads'!$A$37:$A$44,'3. CALCS_Loads'!$C$37:$C$44)="CF_1",CF_1,CF_2) -> 0 | F170: ='3. CALCS_Loads'!C$159*'3. CALCS_Loads'!C136*IF(LOOKUP($A170,'3. CALCS_Loads'!$A$37:$A$44,'3. CALCS_Loads'!$C$37:$C$44)="CF_1",CF_1,CF_2) -> 5.763645117e-16 | G170: ='3. CALCS_Loads'!D$159*'3. CALCS_Loads'!D136*IF(LOOKUP($A170,'3. CALCS_Loads'!$A$37:$A$44,'3. CALCS_Loads'!$C$37:$C$44)="CF_1",CF_1,CF_2) -> 0 | H170: ='3. CALCS_Loads'!E$159*'3. CALCS_Loads'!E136*IF(LOOKUP($A170,'3. CALCS_Loads'!$A$37:$A$44,'3. CALCS_Loads'!$C$37:$C$44)="CF_1",CF_1,CF_2) -> 0 | I170: ='3. CALCS_Loads'!F$159*'3. CALCS_Loads'!F136*IF(LOOKUP($A170,'3. CALCS_Loads'!$A$37:$A$44,'3. CALCS_Loads'!$C$37:$C$44)="CF_1",CF_1,CF_2) -> 0 | J170: ='3. CALCS_Loads'!C$157*'3. CALCS_Loads'!C113*IF(LOOKUP($A170,'3. CALCS_Loads'!$A$37:$A$44,'3. CALCS_Loads'!$C$37:$C$44)="CF_1",CF_1,CF_2) -> 0 | K170: ='3. CALCS_Loads'!D$157*'3. CALCS_Loads'!D113*IF(LOOKUP($A170,'3. CALCS_Loads'!$A$37:$A$44,'3. CALCS_Loads'!$C$37:$C$44)="CF_1",CF_1,CF_2) -> 0 | L170: ='3. CALCS_Loads'!E$157*'3. CALCS_Loads'!E113*IF(LOOKUP($A170,'3. CALCS_Loads'!$A$37:$A$44,'3. CALCS_Loads'!$C$37:$C$44)="CF_1",CF_1,CF_2) -> 0 | M170: ='3. CALCS_Loads'!F$157*'3. CALCS_Loads'!F113*IF(LOOKUP($A170,'3. CALCS_Loads'!$A$37:$A$44,'3. CALCS_Loads'!$C$37:$C$44)="CF_1",CF_1,CF_2) -> 0 | N170: ='3. CALCS_Loads'!C$147*'3. CALCS_Loads'!C126*IF(LOOKUP($A170,'3. CALCS_Loads'!$A$37:$A$44,'3. CALCS_Loads'!$C$37:$C$44)="CF_1",CF_1,CF_2) -> 0.001198843776 | O170: ='3. CALCS_Loads'!D$147*'3. CALCS_Loads'!D126*IF(LOOKUP($A170,'3. CALCS_Loads'!$A$37:$A$44,'3. CALCS_Loads'!$C$37:$C$44)="CF_1",CF_1,CF_2) -> 0 | P170: ='3. CALCS_Loads'!E$147*'3. CALCS_Loads'!E126*IF(LOOKUP($A170,'3. CALCS_Loads'!$A$37:$A$44,'3. CALCS_Loads'!$C$37:$C$44)="CF_1",CF_1,CF_2) -> 0 | Q170: ='3. CALCS_Loads'!F$147*'3. CALCS_Loads'!F126*IF(LOOKUP($A170,'3. CALCS_Loads'!$A$37:$A$44,'3. CALCS_Loads'!$C$37:$C$44)="CF_1",CF_1,CF_2) -> 0 | R170: ='3. CALCS_Loads'!E41*C$84*IF(LOOKUP($A170,'3. CALCS_Loads'!$A$37:$A$44,'3. CALCS_Loads'!$C$37:$C$44)="CF_1",CF_1,CF_2) -> 3.498951182 | S170: ='3. CALCS_Loads'!F41*D$84*IF(LOOKUP($A170,'3. CALCS_Loads'!$A$37:$A$44,'3. CALCS_Loads'!$C$37:$C$44)="CF_1",CF_1,CF_2) -> 0 | T170: ='3. CALCS_Loads'!G41*E$84*IF(LOOKUP($A170,'3. CALCS_Loads'!$A$37:$A$44,'3. CALCS_Loads'!$C$37:$C$44)="CF_1",CF_1,CF_2) -> 0 | U170: ='3. CALCS_Loads'!H41*F$84*IF(LOOKUP($A170,'3. CALCS_Loads'!$A$37:$A$44,'3. CALCS_Loads'!$C$37:$C$44)="CF_1",CF_1,CF_2) -> 0 | V170: =('5.CALCS_Adams&Papa'!G$39*'3. CALCS_Loads'!$F53+'5.CALCS_Adams&Papa'!G$40*'3. CALCS_Loads'!K69)*IF(LOOKUP($A170,'3. CALCS_Loads'!$A$37:$A$44,'3. CALCS_Loads'!$C$37:$C$44)="CF_1",CF_1,CF_2)*C$78 -> 1.975445066 | W170: =('5.CALCS_Adams&Papa'!H$39*'3. CALCS_Loads'!$F53+'5.CALCS_Adams&Papa'!H$40*'3. CALCS_Loads'!L69)*IF(LOOKUP($A170,'3. CALCS_Loads'!$A$37:$A$44,'3. CALCS_Loads'!$C$37:$C$44)="CF_1",CF_1,CF_2)*D$78 -> 0 | X170: =('5.CALCS_Adams&Papa'!I$39*'3. CALCS_Loads'!$F53+'5.CALCS_Adams&Papa'!I$40*'3. CALCS_Loads'!M69)*IF(LOOKUP($A170,'3. CALCS_Loads'!$A$37:$A$44,'3. CALCS_Loads'!$C$37:$C$44)="CF_1",CF_1,CF_2)*E$78 -> 0 | Y170: =('5.CALCS_Adams&Papa'!J$39*'3. CALCS_Loads'!$F53+'5.CALCS_Adams&Papa'!J$40*'3. CALCS_Loads'!N69)*IF(LOOKUP($A170,'3. CALCS_Loads'!$A$37:$A$44,'3. CALCS_Loads'!$C$37:$C$44)="CF_1",CF_1,CF_2)*F$78 -> 0 | Z170: =F170+J170+N170 -> 0.001198843776 | AA170: =G170+K170+O170 -> 0 | AB170: =H170+L170+P170 -> 0 | AC170: =I170+M170+Q170 -> 0 | AD170: =SUM(R170:U170) -> 3.498951182 | AE170: =SUM(V170:Y170) -> 1.975445066 | AF170: =SUM(N170:Q170) -> 0.001198843776 | AG170: =SUM(Z170:AC170) -> 0.001198843776 | AH170: =AG170/AD170 -> 0.0003426294662 | AI170: =AG170/AE170 -> 0.000606872748 | AJ170: =IF(AH170<=1,"YES","NO") -> YES | AK170: =IF(AI170<=1,"YES","NO") -> YES
A171: TP | B171: ='3. CALCS_Loads'!C$145*'3. CALCS_Loads'!C104*IF(LOOKUP($A171,'3. CALCS_Loads'!$A$37:$A$44,'3. CALCS_Loads'!$C$37:$C$44)="CF_1",CF_1,CF_2) -> 0.06012257746 | C171: ='3. CALCS_Loads'!D$145*'3. CALCS_Loads'!D104*IF(LOOKUP($A171,'3. CALCS_Loads'!$A$37:$A$44,'3. CALCS_Loads'!$C$37:$C$44)="CF_1",CF_1,CF_2) -> 0 | D171: ='3. CALCS_Loads'!E$145*'3. CALCS_Loads'!E104*IF(LOOKUP($A171,'3. CALCS_Loads'!$A$37:$A$44,'3. CALCS_Loads'!$C$37:$C$44)="CF_1",CF_1,CF_2) -> 0 | E171: ='3. CALCS_Loads'!F$145*'3. CALCS_Loads'!F104*IF(LOOKUP($A171,'3. CALCS_Loads'!$A$37:$A$44,'3. CALCS_Loads'!$C$37:$C$44)="CF_1",CF_1,CF_2) -> 0 | F171: ='3. CALCS_Loads'!C$159*'3. CALCS_Loads'!C137*IF(LOOKUP($A171,'3. CALCS_Loads'!$A$37:$A$44,'3. CALCS_Loads'!$C$37:$C$44)="CF_1",CF_1,CF_2) -> 1.127560267e-17 | G171: ='3. CALCS_Loads'!D$159*'3. CALCS_Loads'!D137*IF(LOOKUP($A171,'3. CALCS_Loads'!$A$37:$A$44,'3. CALCS_Loads'!$C$37:$C$44)="CF_1",CF_1,CF_2) -> 0 | H171: ='3. CALCS_Loads'!E$159*'3. CALCS_Loads'!E137*IF(LOOKUP($A171,'3. CALCS_Loads'!$A$37:$A$44,'3. CALCS_Loads'!$C$37:$C$44)="CF_1",CF_1,CF_2) -> 0 | I171: ='3. CALCS_Loads'!F$159*'3. CALCS_Loads'!F137*IF(LOOKUP($A171,'3. CALCS_Loads'!$A$37:$A$44,'3. CALCS_Loads'!$C$37:$C$44)="CF_1",CF_1,CF_2) -> 0 | J171: ='3. CALCS_Loads'!C$157*'3. CALCS_Loads'!C114*IF(LOOKUP($A171,'3. CALCS_Loads'!$A$37:$A$44,'3. CALCS_Loads'!$C$37:$C$44)="CF_1",CF_1,CF_2) -> 0 | K171: ='3. CALCS_Loads'!D$157*'3. CALCS_Loads'!D114*IF(LOOKUP($A171,'3. CALCS_Loads'!$A$37:$A$44,'3. CALCS_Loads'!$C$37:$C$44)="CF_1",CF_1,CF_2) -> 0 | L171: ='3. CALCS_Loads'!E$157*'3. CALCS_Loads'!E114*IF(LOOKUP($A171,'3. CALCS_Loads'!$A$37:$A$44,'3. CALCS_Loads'!$C$37:$C$44)="CF_1",CF_1,CF_2) -> 0 | M171: ='3. CALCS_Loads'!F$157*'3. CALCS_Loads'!F114*IF(LOOKUP($A171,'3. CALCS_Loads'!$A$37:$A$44,'3. CALCS_Loads'!$C$37:$C$44)="CF_1",CF_1,CF_2) -> 0 | N171: ='3. CALCS_Loads'!C$147*'3. CALCS_Loads'!C127*IF(LOOKUP($A171,'3. CALCS_Loads'!$A$37:$A$44,'3. CALCS_Loads'!$C$37:$C$44)="CF_1",CF_1,CF_2) -> 2.111456003e-05 | O171: ='3. CALCS_Loads'!D$147*'3. CALCS_Loads'!D127*IF(LOOKUP($A171,'3. CALCS_Loads'!$A$37:$A$44,'3. CALCS_Loads'!$C$37:$C$44)="CF_1",CF_1,CF_2) -> 0 | P171: ='3. CALCS_Loads'!E$147*'3. CALCS_Loads'!E127*IF(LOOKUP($A171,'3. CALCS_Loads'!$A$37:$A$44,'3. CALCS_Loads'!$C$37:$C$44)="CF_1",CF_1,CF_2) -> 0 | Q171: ='3. CALCS_Loads'!F$147*'3. CALCS_Loads'!F127*IF(LOOKUP($A171,'3. CALCS_Loads'!$A$37:$A$44,'3. CALCS_Loads'!$C$37:$C$44)="CF_1",CF_1,CF_2) -> 0 | R171: ='3. CALCS_Loads'!E42*C$84*IF(LOOKUP($A171,'3. CALCS_Loads'!$A$37:$A$44,'3. CALCS_Loads'!$C$37:$C$44)="CF_1",CF_1,CF_2) -> 0.03329777027 | S171: ='3. CALCS_Loads'!F42*D$84*IF(LOOKUP($A171,'3. CALCS_Loads'!$A$37:$A$44,'3. CALCS_Loads'!$C$37:$C$44)="CF_1",CF_1,CF_2) -> 0 | T171: ='3. CALCS_Loads'!G42*E$84*IF(LOOKUP($A171,'3. CALCS_Loads'!$A$37:$A$44,'3. CALCS_Loads'!$C$37:$C$44)="CF_1",CF_1,CF_2) -> 0 | U171: ='3. CALCS_Loads'!H42*F$84*IF(LOOKUP($A171,'3. CALCS_Loads'!$A$37:$A$44,'3. CALCS_Loads'!$C$37:$C$44)="CF_1",CF_1,CF_2) -> 0 | V171: =('5.CALCS_Adams&Papa'!G$39*'3. CALCS_Loads'!$F54+'5.CALCS_Adams&Papa'!G$40*'3. CALCS_Loads'!K70)*IF(LOOKUP($A171,'3. CALCS_Loads'!$A$37:$A$44,'3. CALCS_Loads'!$C$37:$C$44)="CF_1",CF_1,CF_2)*C$78 -> 0.02694283904 | W171: =('5.CALCS_Adams&Papa'!H$39*'3. CALCS_Loads'!$F54+'5.CALCS_Adams&Papa'!H$40*'3. CALCS_Loads'!L70)*IF(LOOKUP($A171,'3. CALCS_Loads'!$A$37:$A$44,'3. CALCS_Loads'!$C$37:$C$44)="CF_1",CF_1,CF_2)*D$78 -> 0 | X171: =('5.CALCS_Adams&Papa'!I$39*'3. CALCS_Loads'!$F54+'5.CALCS_Adams&Papa'!I$40*'3. CALCS_Loads'!M70)*IF(LOOKUP($A171,'3. CALCS_Loads'!$A$37:$A$44,'3. CALCS_Loads'!$C$37:$C$44)="CF_1",CF_1,CF_2)*E$78 -> 0 | Y171: =('5.CALCS_Adams&Papa'!J$39*'3. CALCS_Loads'!$F54+'5.CALCS_Adams&Papa'!J$40*'3. CALCS_Loads'!N70)*IF(LOOKUP($A171,'3. CALCS_Loads'!$A$37:$A$44,'3. CALCS_Loads'!$C$37:$C$44)="CF_1",CF_1,CF_2)*F$78 -> 0 | Z171: 2.111456003e-05 | AA171: 0 | AB171: 0 | AC171: 0 | AD171: 0.03329777027 | AE171: 0.02694283904 | AF171: 2.111456003e-05 | AG171: 2.111456003e-05 | AH171: 0.0006341133312 | AI171: 0.0007836798488 | AJ171: YES | AK171: YES
A172: TSS | B172: ='3. CALCS_Loads'!C$145*'3. CALCS_Loads'!C105*IF(LOOKUP($A172,'3. CALCS_Loads'!$A$37:$A$44,'3. CALCS_Loads'!$C$37:$C$44)="CF_1",CF_1,CF_2) -> 35.91250386 | C172: ='3. CALCS_Loads'!D$145*'3. CALCS_Loads'!D105*IF(LOOKUP($A172,'3. CALCS_Loads'!$A$37:$A$44,'3. CALCS_Loads'!$C$37:$C$44)="CF_1",CF_1,CF_2) -> 0 | D172: ='3. CALCS_Loads'!E$145*'3. CALCS_Loads'!E105*IF(LOOKUP($A172,'3. CALCS_Loads'!$A$37:$A$44,'3. CALCS_Loads'!$C$37:$C$44)="CF_1",CF_1,CF_2) -> 0 | E172: ='3. CALCS_Loads'!F$145*'3. CALCS_Loads'!F105*IF(LOOKUP($A172,'3. CALCS_Loads'!$A$37:$A$44,'3. CALCS_Loads'!$C$37:$C$44)="CF_1",CF_1,CF_2) -> 0 | F172: ='3. CALCS_Loads'!C$159*'3. CALCS_Loads'!C138*IF(LOOKUP($A172,'3. CALCS_Loads'!$A$37:$A$44,'3. CALCS_Loads'!$C$37:$C$44)="CF_1",CF_1,CF_2) -> 6.735159097e-15 | G172: ='3. CALCS_Loads'!D$159*'3. CALCS_Loads'!D138*IF(LOOKUP($A172,'3. CALCS_Loads'!$A$37:$A$44,'3. CALCS_Loads'!$C$37:$C$44)="CF_1",CF_1,CF_2) -> 0 | H172: ='3. CALCS_Loads'!E$159*'3. CALCS_Loads'!E138*IF(LOOKUP($A172,'3. CALCS_Loads'!$A$37:$A$44,'3. CALCS_Loads'!$C$37:$C$44)="CF_1",CF_1,CF_2) -> 0 | I172: ='3. CALCS_Loads'!F$159*'3. CALCS_Loads'!F138*IF(LOOKUP($A172,'3. CALCS_Loads'!$A$37:$A$44,'3. CALCS_Loads'!$C$37:$C$44)="CF_1",CF_1,CF_2) -> 0 | J172: ='3. CALCS_Loads'!C$157*'3. CALCS_Loads'!C115*IF(LOOKUP($A172,'3. CALCS_Loads'!$A$37:$A$44,'3. CALCS_Loads'!$C$37:$C$44)="CF_1",CF_1,CF_2) -> 0 | K172: ='3. CALCS_Loads'!D$157*'3. CALCS_Loads'!D115*IF(LOOKUP($A172,'3. CALCS_Loads'!$A$37:$A$44,'3. CALCS_Loads'!$C$37:$C$44)="CF_1",CF_1,CF_2) -> 0 | L172: ='3. CALCS_Loads'!E$157*'3. CALCS_Loads'!E115*IF(LOOKUP($A172,'3. CALCS_Loads'!$A$37:$A$44,'3. CALCS_Loads'!$C$37:$C$44)="CF_1",CF_1,CF_2) -> 0 | M172: ='3. CALCS_Loads'!F$157*'3. CALCS_Loads'!F115*IF(LOOKUP($A172,'3. CALCS_Loads'!$A$37:$A$44,'3. CALCS_Loads'!$C$37:$C$44)="CF_1",CF_1,CF_2) -> 0 | N172: ='3. CALCS_Loads'!C$147*'3. CALCS_Loads'!C128*IF(LOOKUP($A172,'3. CALCS_Loads'!$A$37:$A$44,'3. CALCS_Loads'!$C$37:$C$44)="CF_1",CF_1,CF_2) -> 0.002418403404 | O172: ='3. CALCS_Loads'!D$147*'3. CALCS_Loads'!D128*IF(LOOKUP($A172,'3. CALCS_Loads'!$A$37:$A$44,'3. CALCS_Loads'!$C$37:$C$44)="CF_1",CF_1,CF_2) -> 0 | P172: ='3. CALCS_Loads'!E$147*'3. CALCS_Loads'!E128*IF(LOOKUP($A172,'3. CALCS_Loads'!$A$37:$A$44,'3. CALCS_Loads'!$C$37:$C$44)="CF_1",CF_1,CF_2) -> 0 | Q172: ='3. CALCS_Loads'!F$147*'3. CALCS_Loads'!F128*IF(LOOKUP($A172,'3. CALCS_Loads'!$A$37:$A$44,'3. CALCS_Loads'!$C$37:$C$44)="CF_1",CF_1,CF_2) -> 0 | R172: ='3. CALCS_Loads'!E43*C$84*IF(LOOKUP($A172,'3. CALCS_Loads'!$A$37:$A$44,'3. CALCS_Loads'!$C$37:$C$44)="CF_1",CF_1,CF_2) -> 44.57604729 | S172: ='3. CALCS_Loads'!F43*D$84*IF(LOOKUP($A172,'3. CALCS_Loads'!$A$37:$A$44,'3. CALCS_Loads'!$C$37:$C$44)="CF_1",CF_1,CF_2) -> 0 | T172: ='3. CALCS_Loads'!G43*E$84*IF(LOOKUP($A172,'3. CALCS_Loads'!$A$37:$A$44,'3. CALCS_Loads'!$C$37:$C$44)="CF_1",CF_1,CF_2) -> 0 | U172: ='3. CALCS_Loads'!H43*F$84*IF(LOOKUP($A172,'3. CALCS_Loads'!$A$37:$A$44,'3. CALCS_Loads'!$C$37:$C$44)="CF_1",CF_1,CF_2) -> 0 | V172: =('5.CALCS_Adams&Papa'!G$39*'3. CALCS_Loads'!$F55+'5.CALCS_Adams&Papa'!G$40*'3. CALCS_Loads'!K71)*IF(LOOKUP($A172,'3. CALCS_Loads'!$A$37:$A$44,'3. CALCS_Loads'!$C$37:$C$44)="CF_1",CF_1,CF_2)*C$78 -> 5.649900562 | W172: =('5.CALCS_Adams&Papa'!H$39*'3. CALCS_Loads'!$F55+'5.CALCS_Adams&Papa'!H$40*'3. CALCS_Loads'!L71)*IF(LOOKUP($A172,'3. CALCS_Loads'!$A$37:$A$44,'3. CALCS_Loads'!$C$37:$C$44)="CF_1",CF_1,CF_2)*D$78 -> 0 | X172: =('5.CALCS_Adams&Papa'!I$39*'3. CALCS_Loads'!$F55+'5.CALCS_Adams&Papa'!I$40*'3. CALCS_Loads'!M71)*IF(LOOKUP($A172,'3. CALCS_Loads'!$A$37:$A$44,'3. CALCS_Loads'!$C$37:$C$44)="CF_1",CF_1,CF_2)*E$78 -> 0 | Y172: =('5.CALCS_Adams&Papa'!J$39*'3. CALCS_Loads'!$F55+'5.CALCS_Adams&Papa'!J$40*'3. CALCS_Loads'!N71)*IF(LOOKUP($A172,'3. CALCS_Loads'!$A$37:$A$44,'3. CALCS_Loads'!$C$37:$C$44)="CF_1",CF_1,CF_2)*F$78 -> 0 | Z172: 0.002418403404 | AA172: 0 | AB172: 0 | AC172: 0 | AD172: 44.57604729 | AE172: 5.649900562 | AF172: 0.002418403404 | AG172: 0.002418403404 | AH172: 5.425342872e-05 | AI172: 0.0004280435342 | AJ172: YES | AK172: YES
A173: Zn | B173: ='3. CALCS_Loads'!C$145*'3. CALCS_Loads'!C106*IF(LOOKUP($A173,'3. CALCS_Loads'!$A$37:$A$44,'3. CALCS_Loads'!$C$37:$C$44)="CF_1",CF_1,CF_2) -> 0.00632494883 | C173: ='3. CALCS_Loads'!D$145*'3. CALCS_Loads'!D106*IF(LOOKUP($A173,'3. CALCS_Loads'!$A$37:$A$44,'3. CALCS_Loads'!$C$37:$C$44)="CF_1",CF_1,CF_2) -> 0 | D173: ='3. CALCS_Loads'!E$145*'3. CALCS_Loads'!E106*IF(LOOKUP($A173,'3. CALCS_Loads'!$A$37:$A$44,'3. CALCS_Loads'!$C$37:$C$44)="CF_1",CF_1,CF_2) -> 0 | E173: ='3. CALCS_Loads'!F$145*'3. CALCS_Loads'!F106*IF(LOOKUP($A173,'3. CALCS_Loads'!$A$37:$A$44,'3. CALCS_Loads'!$C$37:$C$44)="CF_1",CF_1,CF_2) -> 0 | F173: ='3. CALCS_Loads'!C$159*'3. CALCS_Loads'!C139*IF(LOOKUP($A173,'3. CALCS_Loads'!$A$37:$A$44,'3. CALCS_Loads'!$C$37:$C$44)="CF_1",CF_1,CF_2) -> 1.186203469e-18 | G173: ='3. CALCS_Loads'!D$159*'3. CALCS_Loads'!D139*IF(LOOKUP($A173,'3. CALCS_Loads'!$A$37:$A$44,'3. CALCS_Loads'!$C$37:$C$44)="CF_1",CF_1,CF_2) -> 0 | H173: ='3. CALCS_Loads'!E$159*'3. CALCS_Loads'!E139*IF(LOOKUP($A173,'3. CALCS_Loads'!$A$37:$A$44,'3. CALCS_Loads'!$C$37:$C$44)="CF_1",CF_1,CF_2) -> 0 | I173: ='3. CALCS_Loads'!F$159*'3. CALCS_Loads'!F139*IF(LOOKUP($A173,'3. CALCS_Loads'!$A$37:$A$44,'3. CALCS_Loads'!$C$37:$C$44)="CF_1",CF_1,CF_2) -> 0 | J173: ='3. CALCS_Loads'!C$157*'3. CALCS_Loads'!C116*IF(LOOKUP($A173,'3. CALCS_Loads'!$A$37:$A$44,'3. CALCS_Loads'!$C$37:$C$44)="CF_1",CF_1,CF_2) -> 0 | K173: ='3. CALCS_Loads'!D$157*'3. CALCS_Loads'!D116*IF(LOOKUP($A173,'3. CALCS_Loads'!$A$37:$A$44,'3. CALCS_Loads'!$C$37:$C$44)="CF_1",CF_1,CF_2) -> 0 | L173: ='3. CALCS_Loads'!E$157*'3. CALCS_Loads'!E116*IF(LOOKUP($A173,'3. CALCS_Loads'!$A$37:$A$44,'3. CALCS_Loads'!$C$37:$C$44)="CF_1",CF_1,CF_2) -> 0 | M173: ='3. CALCS_Loads'!F$157*'3. CALCS_Loads'!F116*IF(LOOKUP($A173,'3. CALCS_Loads'!$A$37:$A$44,'3. CALCS_Loads'!$C$37:$C$44)="CF_1",CF_1,CF_2) -> 0 | N173: ='3. CALCS_Loads'!C$147*'3. CALCS_Loads'!C129*IF(LOOKUP($A173,'3. CALCS_Loads'!$A$37:$A$44,'3. CALCS_Loads'!$C$37:$C$44)="CF_1",CF_1,CF_2) -> 2.970172799e-06 | O173: ='3. CALCS_Loads'!D$147*'3. CALCS_Loads'!D129*IF(LOOKUP($A173,'3. CALCS_Loads'!$A$37:$A$44,'3. CALCS_Loads'!$C$37:$C$44)="CF_1",CF_1,CF_2) -> 0 | P173: ='3. CALCS_Loads'!E$147*'3. CALCS_Loads'!E129*IF(LOOKUP($A173,'3. CALCS_Loads'!$A$37:$A$44,'3. CALCS_Loads'!$C$37:$C$44)="CF_1",CF_1,CF_2) -> 0 | Q173: ='3. CALCS_Loads'!F$147*'3. CALCS_Loads'!F129*IF(LOOKUP($A173,'3. CALCS_Loads'!$A$37:$A$44,'3. CALCS_Loads'!$C$37:$C$44)="CF_1",CF_1,CF_2) -> 0 | R173: ='3. CALCS_Loads'!E44*C$84*IF(LOOKUP($A173,'3. CALCS_Loads'!$A$37:$A$44,'3. CALCS_Loads'!$C$37:$C$44)="CF_1",CF_1,CF_2) -> 0.006327919002 | S173: ='3. CALCS_Loads'!F44*D$84*IF(LOOKUP($A173,'3. CALCS_Loads'!$A$37:$A$44,'3. CALCS_Loads'!$C$37:$C$44)="CF_1",CF_1,CF_2) -> 0 | T173: ='3. CALCS_Loads'!G44*E$84*IF(LOOKUP($A173,'3. CALCS_Loads'!$A$37:$A$44,'3. CALCS_Loads'!$C$37:$C$44)="CF_1",CF_1,CF_2) -> 0 | U173: ='3. CALCS_Loads'!H44*F$84*IF(LOOKUP($A173,'3. CALCS_Loads'!$A$37:$A$44,'3. CALCS_Loads'!$C$37:$C$44)="CF_1",CF_1,CF_2) -> 0 | V173: =('5.CALCS_Adams&Papa'!G$39*'3. CALCS_Loads'!$F56+'5.CALCS_Adams&Papa'!G$40*'3. CALCS_Loads'!K72)*IF(LOOKUP($A173,'3. CALCS_Loads'!$A$37:$A$44,'3. CALCS_Loads'!$C$37:$C$44)="CF_1",CF_1,CF_2)*C$78 -> 0.006238825365 | W173: =('5.CALCS_Adams&Papa'!H$39*'3. CALCS_Loads'!$F56+'5.CALCS_Adams&Papa'!H$40*'3. CALCS_Loads'!L72)*IF(LOOKUP($A173,'3. CALCS_Loads'!$A$37:$A$44,'3. CALCS_Loads'!$C$37:$C$44)="CF_1",CF_1,CF_2)*D$78 -> 0 | X173: =('5.CALCS_Adams&Papa'!I$39*'3. CALCS_Loads'!$F56+'5.CALCS_Adams&Papa'!I$40*'3. CALCS_Loads'!M72)*IF(LOOKUP($A173,'3. CALCS_Loads'!$A$37:$A$44,'3. CALCS_Loads'!$C$37:$C$44)="CF_1",CF_1,CF_2)*E$78 -> 0 | Y173: =('5.CALCS_Adams&Papa'!J$39*'3. CALCS_Loads'!$F56+'5.CALCS_Adams&Papa'!J$40*'3. CALCS_Loads'!N72)*IF(LOOKUP($A173,'3. CALCS_Loads'!$A$37:$A$44,'3. CALCS_Loads'!$C$37:$C$44)="CF_1",CF_1,CF_2)*F$78 -> 0 | Z173: 2.970172799e-06 | AA173: 0 | AB173: 0 | AC173: 0 | AD173: 0.006327919002 | AE173: 0.006238825365 | AF173: 2.970172799e-06 | AG173: 2.970172799e-06 | AH173: 0.0004693759192 | AI173: 0.000476078849 | AJ173: YES | AK173: YES
A175: PLOT: Developed, Existing, and Sed/Fil Loadings
A176: POLLUTANT | B176: =IF('1. ENTER DATA'!$E$14="Yes","Drainage Area A - Existing","Drainage Area A - Sed/Fil") -> Drainage Area A - Existing | C176: =IF('1. ENTER DATA'!$E$14="Yes","Drainage Area B - Existing","Drainage Area B - Sed/Fil") -> Drainage Area B - Existing | D176: =IF('1. ENTER DATA'!$E$14="Yes","Drainage Area C - Existing","Drainage Area C - Sed/Fil") -> Drainage Area C - Existing | E176: =IF('1. ENTER DATA'!$E$14="Yes","Drainage Area D - Existing","Drainage Area D- Sed/Fil") -> Drainage Area D - Existing | F176: Drainage Area A Developed (Treated) Load | G176: Drainage Area B Developed (Treated) Load | H176: Drainage Area C Developed (Treated) Load | I176: Drainage Area D Developed (Treated) Load
A177: COD | B177: =IF('1. ENTER DATA'!$E$14="Yes",'3. CALCS_Loads'!R166,'3. CALCS_Loads'!V166) -> 10.44583277 | C177: =IF('1. ENTER DATA'!$E$14="Yes",'3. CALCS_Loads'!S166,'3. CALCS_Loads'!W166) -> 0 | D177: =IF('1. ENTER DATA'!$E$14="Yes",'3. CALCS_Loads'!T166,'3. CALCS_Loads'!X166) -> 0 | E177: =IF('1. ENTER DATA'!$E$14="Yes",'3. CALCS_Loads'!U166,'3. CALCS_Loads'!Y166) -> 0 | F177: =Z166 -> 0.003145137383 | G177: 0 | H177: 0 | I177: 0
A178: E. coli | B178: =IF('1. ENTER DATA'!$E$14="Yes",'3. CALCS_Loads'!R167,'3. CALCS_Loads'!V167) -> 10193.46962 | C178: =IF('1. ENTER DATA'!$E$14="Yes",'3. CALCS_Loads'!S167,'3. CALCS_Loads'!W167) -> 0 | D178: =IF('1. ENTER DATA'!$E$14="Yes",'3. CALCS_Loads'!T167,'3. CALCS_Loads'!X167) -> 0 | E178: =IF('1. ENTER DATA'!$E$14="Yes",'3. CALCS_Loads'!U167,'3. CALCS_Loads'!Y167) -> 0 | F178: 4.702987291 | G178: 0 | H178: 0 | I178: 0
A179: Pb | B179: =IF('1. ENTER DATA'!$E$14="Yes",'3. CALCS_Loads'!R168,'3. CALCS_Loads'!V168) -> 0.001150115726 | C179: =IF('1. ENTER DATA'!$E$14="Yes",'3. CALCS_Loads'!S168,'3. CALCS_Loads'!W168) -> 0 | D179: =IF('1. ENTER DATA'!$E$14="Yes",'3. CALCS_Loads'!T168,'3. CALCS_Loads'!X168) -> 0 | E179: =IF('1. ENTER DATA'!$E$14="Yes",'3. CALCS_Loads'!U168,'3. CALCS_Loads'!Y168) -> 0 | F179: 5.398366262e-07 | G179: 0 | H179: 0 | I179: 0
A180: TN | B180: =IF('1. ENTER DATA'!$E$14="Yes",'3. CALCS_Loads'!R169,'3. CALCS_Loads'!V169) -> 0.3195511824 | C180: =IF('1. ENTER DATA'!$E$14="Yes",'3. CALCS_Loads'!S169,'3. CALCS_Loads'!W169) -> 0 | D180: =IF('1. ENTER DATA'!$E$14="Yes",'3. CALCS_Loads'!T169,'3. CALCS_Loads'!X169) -> 0 | E180: =IF('1. ENTER DATA'!$E$14="Yes",'3. CALCS_Loads'!U169,'3. CALCS_Loads'!Y169) -> 0 | F180: 0.0001684287566 | G180: 0 | H180: 0 | I180: 0
A181: TOC | B181: =IF('1. ENTER DATA'!$E$14="Yes",'3. CALCS_Loads'!R170,'3. CALCS_Loads'!V170) -> 3.498951182 | C181: =IF('1. ENTER DATA'!$E$14="Yes",'3. CALCS_Loads'!S170,'3. CALCS_Loads'!W170) -> 0 | D181: =IF('1. ENTER DATA'!$E$14="Yes",'3. CALCS_Loads'!T170,'3. CALCS_Loads'!X170) -> 0 | E181: =IF('1. ENTER DATA'!$E$14="Yes",'3. CALCS_Loads'!U170,'3. CALCS_Loads'!Y170) -> 0 | F181: 0.001198843776 | G181: 0 | H181: 0 | I181: 0
A182: TP | B182: =IF('1. ENTER DATA'!$E$14="Yes",'3. CALCS_Loads'!R171,'3. CALCS_Loads'!V171) -> 0.03329777027 | C182: =IF('1. ENTER DATA'!$E$14="Yes",'3. CALCS_Loads'!S171,'3. CALCS_Loads'!W171) -> 0 | D182: =IF('1. ENTER DATA'!$E$14="Yes",'3. CALCS_Loads'!T171,'3. CALCS_Loads'!X171) -> 0 | E182: =IF('1. ENTER DATA'!$E$14="Yes",'3. CALCS_Loads'!U171,'3. CALCS_Loads'!Y171) -> 0 | F182: =Z171 -> 2.111456003e-05 | G182: 0 | H182: 0 | I182: 0
A183: TSS | B183: =IF('1. ENTER DATA'!$E$14="Yes",'3. CALCS_Loads'!R172,'3. CALCS_Loads'!V172) -> 44.57604729 | C183: =IF('1. ENTER DATA'!$E$14="Yes",'3. CALCS_Loads'!S172,'3. CALCS_Loads'!W172) -> 0 | D183: =IF('1. ENTER DATA'!$E$14="Yes",'3. CALCS_Loads'!T172,'3. CALCS_Loads'!X172) -> 0 | E183: =IF('1. ENTER DATA'!$E$14="Yes",'3. CALCS_Loads'!U172,'3. CALCS_Loads'!Y172) -> 0 | F183: 0.002418403404 | G183: 0 | H183: 0 | I183: 0
A184: Zn | B184: =IF('1. ENTER DATA'!$E$14="Yes",'3. CALCS_Loads'!R173,'3. CALCS_Loads'!V173) -> 0.006327919002 | C184: =IF('1. ENTER DATA'!$E$14="Yes",'3. CALCS_Loads'!S173,'3. CALCS_Loads'!W173) -> 0 | D184: =IF('1. ENTER DATA'!$E$14="Yes",'3. CALCS_Loads'!T173,'3. CALCS_Loads'!X173) -> 0 | E184: =IF('1. ENTER DATA'!$E$14="Yes",'3. CALCS_Loads'!U173,'3. CALCS_Loads'!Y173) -> 0 | F184: 2.970172799e-06 | G184: 0 | H184: 0 | I184: 0
A186: PLOT: Load Equivalency Factor (LEF)
A187: POLLUTANT | B187: RED | C187: GREEN
B188: >1 | C188: <=1
A189: COD | B189: =IF(IF('1. ENTER DATA'!$E$14="No",LOOKUP($A189,'3. CALCS_Loads'!$A$166:$A$173,'3. CALCS_Loads'!$AI$166:$AI$173),LOOKUP('3. CALCS_Loads'!$A189,'3. CALCS_Loads'!$A$166:$A$173,'3. CALCS_Loads'!$AH$166:$AH$173))>1,IF('1. ENTER DATA'!$E$14="No",LOOKUP($A189,'3. CALCS_Loads'!$A$166:$A$173,'3. CALCS_Loads'!$AI$166:$AI$173),LOOKUP('3. CALCS_Loads'!$A189,'3. CALCS_Loads'!$A$166:$A$173,'3. CALCS_Loads'!$AH$166:$AH$173)),#N/A) ->  | C189: =IF(IF('1. ENTER DATA'!$E$14="No",LOOKUP($A189,'3. CALCS_Loads'!$A$166:$A$173,'3. CALCS_Loads'!$AI$166:$AI$173),LOOKUP('3. CALCS_Loads'!$A189,'3. CALCS_Loads'!$A$166:$A$173,'3. CALCS_Loads'!$AH$166:$AH$173))<=1,IF('1. ENTER DATA'!$E$14="No",LOOKUP($A189,'3. CALCS_Loads'!$A$166:$A$173,'3. CALCS_Loads'!$AI$166:$AI$173),LOOKUP('3. CALCS_Loads'!$A189,'3. CALCS_Loads'!$A$166:$A$173,'3. CALCS_Loads'!$AH$166:$AH$173)),#N/A) -> 0.0003010901526
A190: E. coli | B190: =IF(IF('1. ENTER DATA'!$E$14="No",LOOKUP($A190,'3. CALCS_Loads'!$A$166:$A$173,'3. CALCS_Loads'!$AI$166:$AI$173),LOOKUP('3. CALCS_Loads'!$A190,'3. CALCS_Loads'!$A$166:$A$173,'3. CALCS_Loads'!$AH$166:$AH$173))>1,IF('1. ENTER DATA'!$E$14="No",LOOKUP($A190,'3. CALCS_Loads'!$A$166:$A$173,'3. CALCS_Loads'!$AI$166:$AI$173),LOOKUP('3. CALCS_Loads'!$A190,'3. CALCS_Loads'!$A$166:$A$173,'3. CALCS_Loads'!$AH$166:$AH$173)),#N/A) ->  | C190: =IF(IF('1. ENTER DATA'!$E$14="No",LOOKUP($A190,'3. CALCS_Loads'!$A$166:$A$173,'3. CALCS_Loads'!$AI$166:$AI$173),LOOKUP('3. CALCS_Loads'!$A190,'3. CALCS_Loads'!$A$166:$A$173,'3. CALCS_Loads'!$AH$166:$AH$173))<=1,IF('1. ENTER DATA'!$E$14="No",LOOKUP($A190,'3. CALCS_Loads'!$A$166:$A$173,'3. CALCS_Loads'!$AI$166:$AI$173),LOOKUP('3. CALCS_Loads'!$A190,'3. CALCS_Loads'!$A$166:$A$173,'3. CALCS_Loads'!$AH$166:$AH$173)),#N/A) -> 0.0004613725713
A191: Pb | B191: =IF(IF('1. ENTER DATA'!$E$14="No",LOOKUP($A191,'3. CALCS_Loads'!$A$166:$A$173,'3. CALCS_Loads'!$AI$166:$AI$173),LOOKUP('3. CALCS_Loads'!$A191,'3. CALCS_Loads'!$A$166:$A$173,'3. CALCS_Loads'!$AH$166:$AH$173))>1,IF('1. ENTER DATA'!$E$14="No",LOOKUP($A191,'3. CALCS_Loads'!$A$166:$A$173,'3. CALCS_Loads'!$AI$166:$AI$173),LOOKUP('3. CALCS_Loads'!$A191,'3. CALCS_Loads'!$A$166:$A$173,'3. CALCS_Loads'!$AH$166:$AH$173)),#N/A) ->  | C191: =IF(IF('1. ENTER DATA'!$E$14="No",LOOKUP($A191,'3. CALCS_Loads'!$A$166:$A$173,'3. CALCS_Loads'!$AI$166:$AI$173),LOOKUP('3. CALCS_Loads'!$A191,'3. CALCS_Loads'!$A$166:$A$173,'3. CALCS_Loads'!$AH$166:$AH$173))<=1,IF('1. ENTER DATA'!$E$14="No",LOOKUP($A191,'3. CALCS_Loads'!$A$166:$A$173,'3. CALCS_Loads'!$AI$166:$AI$173),LOOKUP('3. CALCS_Loads'!$A191,'3. CALCS_Loads'!$A$166:$A$173,'3. CALCS_Loads'!$AH$166:$AH$173)),#N/A) -> 0.0004693759192
A192: TN | B192: =IF(IF('1. ENTER DATA'!$E$14="No",LOOKUP($A192,'3. CALCS_Loads'!$A$166:$A$173,'3. CALCS_Loads'!$AI$166:$AI$173),LOOKUP('3. CALCS_Loads'!$A192,'3. CALCS_Loads'!$A$166:$A$173,'3. CALCS_Loads'!$AH$166:$AH$173))>1,IF('1. ENTER DATA'!$E$14="No",LOOKUP($A192,'3. CALCS_Loads'!$A$166:$A$173,'3. CALCS_Loads'!$AI$166:$AI$173),LOOKUP('3. CALCS_Loads'!$A192,'3. CALCS_Loads'!$A$166:$A$173,'3. CALCS_Loads'!$AH$166:$AH$173)),#N/A) ->  | C192: =IF(IF('1. ENTER DATA'!$E$14="No",LOOKUP($A192,'3. CALCS_Loads'!$A$166:$A$173,'3. CALCS_Loads'!$AI$166:$AI$173),LOOKUP('3. CALCS_Loads'!$A192,'3. CALCS_Loads'!$A$166:$A$173,'3. CALCS_Loads'!$AH$166:$AH$173))<=1,IF('1. ENTER DATA'!$E$14="No",LOOKUP($A192,'3. CALCS_Loads'!$A$166:$A$173,'3. CALCS_Loads'!$AI$166:$AI$173),LOOKUP('3. CALCS_Loads'!$A192,'3. CALCS_Loads'!$A$166:$A$173,'3. CALCS_Loads'!$AH$166:$AH$173)),#N/A) -> 0.000527079122
A193: TOC | B193: =IF(IF('1. ENTER DATA'!$E$14="No",LOOKUP($A193,'3. CALCS_Loads'!$A$166:$A$173,'3. CALCS_Loads'!$AI$166:$AI$173),LOOKUP('3. CALCS_Loads'!$A193,'3. CALCS_Loads'!$A$166:$A$173,'3. CALCS_Loads'!$AH$166:$AH$173))>1,IF('1. ENTER DATA'!$E$14="No",LOOKUP($A193,'3. CALCS_Loads'!$A$166:$A$173,'3. CALCS_Loads'!$AI$166:$AI$173),LOOKUP('3. CALCS_Loads'!$A193,'3. CALCS_Loads'!$A$166:$A$173,'3. CALCS_Loads'!$AH$166:$AH$173)),#N/A) ->  | C193: =IF(IF('1. ENTER DATA'!$E$14="No",LOOKUP($A193,'3. CALCS_Loads'!$A$166:$A$173,'3. CALCS_Loads'!$AI$166:$AI$173),LOOKUP('3. CALCS_Loads'!$A193,'3. CALCS_Loads'!$A$166:$A$173,'3. CALCS_Loads'!$AH$166:$AH$173))<=1,IF('1. ENTER DATA'!$E$14="No",LOOKUP($A193,'3. CALCS_Loads'!$A$166:$A$173,'3. CALCS_Loads'!$AI$166:$AI$173),LOOKUP('3. CALCS_Loads'!$A193,'3. CALCS_Loads'!$A$166:$A$173,'3. CALCS_Loads'!$AH$166:$AH$173)),#N/A) -> 0.0003426294662
A194: TP | B194: =IF(IF('1. ENTER DATA'!$E$14="No",LOOKUP($A194,'3. CALCS_Loads'!$A$166:$A$173,'3. CALCS_Loads'!$AI$166:$AI$173),LOOKUP('3. CALCS_Loads'!$A194,'3. CALCS_Loads'!$A$166:$A$173,'3. CALCS_Loads'!$AH$166:$AH$173))>1,IF('1. ENTER DATA'!$E$14="No",LOOKUP($A194,'3. CALCS_Loads'!$A$166:$A$173,'3. CALCS_Loads'!$AI$166:$AI$173),LOOKUP('3. CALCS_Loads'!$A194,'3. CALCS_Loads'!$A$166:$A$173,'3. CALCS_Loads'!$AH$166:$AH$173)),#N/A) ->  | C194: =IF(IF('1. ENTER DATA'!$E$14="No",LOOKUP($A194,'3. CALCS_Loads'!$A$166:$A$173,'3. CALCS_Loads'!$AI$166:$AI$173),LOOKUP('3. CALCS_Loads'!$A194,'3. CALCS_Loads'!$A$166:$A$173,'3. CALCS_Loads'!$AH$166:$AH$173))<=1,IF('1. ENTER DATA'!$E$14="No",LOOKUP($A194,'3. CALCS_Loads'!$A$166:$A$173,'3. CALCS_Loads'!$AI$166:$AI$173),LOOKUP('3. CALCS_Loads'!$A194,'3. CALCS_Loads'!$A$166:$A$173,'3. CALCS_Loads'!$AH$166:$AH$173)),#N/A) -> 0.0006341133312
A195: TSS | B195: =IF(IF('1. ENTER DATA'!$E$14="No",LOOKUP($A195,'3. CALCS_Loads'!$A$166:$A$173,'3. CALCS_Loads'!$AI$166:$AI$173),LOOKUP('3. CALCS_Loads'!$A195,'3. CALCS_Loads'!$A$166:$A$173,'3. CALCS_Loads'!$AH$166:$AH$173))>1,IF('1. ENTER DATA'!$E$14="No",LOOKUP($A195,'3. CALCS_Loads'!$A$166:$A$173,'3. CALCS_Loads'!$AI$166:$AI$173),LOOKUP('3. CALCS_Loads'!$A195,'3. CALCS_Loads'!$A$166:$A$173,'3. CALCS_Loads'!$AH$166:$AH$173)),#N/A) ->  | C195: =IF(IF('1. ENTER DATA'!$E$14="No",LOOKUP($A195,'3. CALCS_Loads'!$A$166:$A$173,'3. CALCS_Loads'!$AI$166:$AI$173),LOOKUP('3. CALCS_Loads'!$A195,'3. CALCS_Loads'!$A$166:$A$173,'3. CALCS_Loads'!$AH$166:$AH$173))<=1,IF('1. ENTER DATA'!$E$14="No",LOOKUP($A195,'3. CALCS_Loads'!$A$166:$A$173,'3. CALCS_Loads'!$AI$166:$AI$173),LOOKUP('3. CALCS_Loads'!$A195,'3. CALCS_Loads'!$A$166:$A$173,'3. CALCS_Loads'!$AH$166:$AH$173)),#N/A) -> 5.425342872e-05
A196: Zn | B196: =IF(IF('1. ENTER DATA'!$E$14="No",LOOKUP($A196,'3. CALCS_Loads'!$A$166:$A$173,'3. CALCS_Loads'!$AI$166:$AI$173),LOOKUP('3. CALCS_Loads'!$A196,'3. CALCS_Loads'!$A$166:$A$173,'3. CALCS_Loads'!$AH$166:$AH$173))>1,IF('1. ENTER DATA'!$E$14="No",LOOKUP($A196,'3. CALCS_Loads'!$A$166:$A$173,'3. CALCS_Loads'!$AI$166:$AI$173),LOOKUP('3. CALCS_Loads'!$A196,'3. CALCS_Loads'!$A$166:$A$173,'3. CALCS_Loads'!$AH$166:$AH$173)),#N/A) ->  | C196: =IF(IF('1. ENTER DATA'!$E$14="No",LOOKUP($A196,'3. CALCS_Loads'!$A$166:$A$173,'3. CALCS_Loads'!$AI$166:$AI$173),LOOKUP('3. CALCS_Loads'!$A196,'3. CALCS_Loads'!$A$166:$A$173,'3. CALCS_Loads'!$AH$166:$AH$173))<=1,IF('1. ENTER DATA'!$E$14="No",LOOKUP($A196,'3. CALCS_Loads'!$A$166:$A$173,'3. CALCS_Loads'!$AI$166:$AI$173),LOOKUP('3. CALCS_Loads'!$A196,'3. CALCS_Loads'!$A$166:$A$173,'3. CALCS_Loads'!$AH$166:$AH$173)),#N/A) -> 0.0004693759192

Sheet 4. CALCS_Infiltration
A1: SIZING INFILTRATION FIELDS
A3: LOOK UP… | E3: SCM A2 | F3: SCM B2 | G3: SCM C2 | H3: SCM D2
A4: Drainage Area | D4: Ac | E4: =DA_A -> 1 | F4: =DA_B -> 1 | G4: =DA_C -> 1 | H4: =DA_D -> 1
A5: Total water application time | D5: hrs | E5: ='5.CALCS_Adams&Papa'!B25/'5.CALCS_Adams&Papa'!B28 -> 60 | F5: ='5.CALCS_Adams&Papa'!C25/'5.CALCS_Adams&Papa'!C28 -> 60 | G5: ='5.CALCS_Adams&Papa'!D25/'5.CALCS_Adams&Papa'!D28 -> 60 | H5: ='5.CALCS_Adams&Papa'!E25/'5.CALCS_Adams&Papa'!E28 -> 60 | I5: Water application time: if given DDT, = DDT; if given treatment rate, = WQV_inf / treatment rate
A6: Soil Infiltration Rate (permeability) | D6: in/hr | E6: ='1. ENTER DATA'!E52 -> 0.2 | F6: ='1. ENTER DATA'!F52 -> 0.2 | G6: ='1. ENTER DATA'!G52 -> 0.2 | H6: ='1. ENTER DATA'!H52 -> 0.2
A7: Number of Application Zones | E7: ='1. ENTER DATA'!E51 -> 2 | F7: ='1. ENTER DATA'!F51 -> 2 | G7: ='1. ENTER DATA'!G51 -> 2 | H7: ='1. ENTER DATA'!H51 -> 2
A9: 1. WQV_inf Known, Calculate Area
A10: WQV infiltrated | D10: in | E10: =IF('1. ENTER DATA'!E49="Yes",'1. ENTER DATA'!E50,'3. CALCS_Loads'!C150) -> 2.5 | F10: =IF('1. ENTER DATA'!F49="Yes",'1. ENTER DATA'!F50,'3. CALCS_Loads'!D150) -> 0 | G10: =IF('1. ENTER DATA'!G49="Yes",'1. ENTER DATA'!G50,'3. CALCS_Loads'!E150) -> 0 | H10: =IF('1. ENTER DATA'!H49="Yes",'1. ENTER DATA'!H50,'3. CALCS_Loads'!F150) -> 0
A11: Field Area | D11: Acres | E11: =IF(E10<>0,E10*E7/(E6*E5)*E4,0) -> 0.4166666667 | F11: =IF(F10<>0,F10*F7/(F6*F5)*F4,0) -> 0 | G11: 0 | H11: 0 | J11: A_field (Ac) = WQV (in) * no. of zones * Drainage area (Ac) / [I (in/hr) * app time (hr)]
A13: 2. Area Known, Calculate WQV_inf
A14: User Input Field Area | D14: Ac | E14: ='1. ENTER DATA'!E55 -> 0 | F14: ='1. ENTER DATA'!F55 -> 0 | G14: ='1. ENTER DATA'!G55 -> 0 | H14: ='1. ENTER DATA'!H55 -> 0
A15: Corresponding WQVinf | D15: in | E15: =E14*E6*E5/(E4*E7) -> 0 | F15: =F14*F6*F5/(F4*F7) -> 0 | G15: =G14*G6*G5/(G4*G7) -> 0 | H15: =H14*H6*H5/(H4*H7) -> 0 | J15: WQV (in) = A_field (Ac) * I (in/hr) * app time (hr) / [drainage area (Ac) * no. of zones]
A18: 3. Values for Use in Calculator
E19: SCM A2 | F19: SCM B2 | G19: SCM C2 | H19: SCM D2
A20: Field Area to Use (Ac) | E20: =IF('1. ENTER DATA'!E54="Yes",E14,E11) -> 0.4166666667 | F20: =IF('1. ENTER DATA'!F54="Yes",F14,F11) -> 0 | G20: =IF('1. ENTER DATA'!G54="Yes",G14,G11) -> 0 | H20: =IF('1. ENTER DATA'!H54="Yes",H14,H11) -> 0
A21: WQV_inf to Use (in) | E21: =IF('1. ENTER DATA'!E54="Yes",IF(E15<E10,E15,E10),E10) -> 2.5 | F21: =IF('1. ENTER DATA'!F54="Yes",IF(F15<F10,F15,F10),F10) -> 0 | G21: =IF('1. ENTER DATA'!G54="Yes",IF(G15<G10,G15,G10),G10) -> 0 | H21: =IF('1. ENTER DATA'!H54="Yes",IF(H15<H10,H15,H10),H10) -> 0 | J21: Will adjust for user input field area but not greater than routed volume
A22: Yearly Volume Infiltrated (in/yr) | E22: ='5.CALCS_Adams&Papa'!B60 -> 1.183962786 | F22: ='5.CALCS_Adams&Papa'!C60 -> 0 | G22: ='5.CALCS_Adams&Papa'!D60 -> 0 | H22: ='5.CALCS_Adams&Papa'!E60 -> 0

Sheet 5.CALCS_Adams&Papa
A1: ADAMS & PAPA FOR VOLUMETRIC STORMWATER CONTROL MEASURE
A3: Rainfall Statistics
A4: Parameter | B4: Symbol | C4: Value
A5: Mean annual rainfall event volume (in.) | B5: v | C5: ='3. CALCS_Loads'!$A$2/'3. CALCS_Loads'!$A$3 -> 0.3999747889
A6: Mean annual rainfall event duration (hr) | B6: t | C6: 5.77
A7: Mean annual rainfall event intensity (in/hr) | B7: i | C7: 0.083
A8: Delta = Time interval between storm event midpoints (hr) | B8: Δ | C8: 109.4
A9: Interevent time, b (hr) - Figure 4.2 in A&P | B9: b | C9: =$C$8-$C$6 -> 103.63
A10: Minimum Interevent Time (hr) | B10: IETD | C10: 6
A11: Psi = 1/(b - IETD) but using simpler 1/b (1/hr) | B11: y | C11: =1/C9 -> 0.009649715333
A12: Theta = avg. annual number of rainfall events | B12: θ | C12: ='3. CALCS_Loads'!A3 -> 79.33
A13: Average Annual total rainfall (in.) | B13: P | C13: ='3. CALCS_Loads'!A2 -> 31.73
A14: Zeta = 1/mean rainfall event volume (1/in) | B14: z | C14: =1/v -> 2.50015758
A15: Lambda = 1/mean rainfall event duration (1/hr) | B15: l | C15: =1/t -> 0.1733102253
A17: Drainage Area | B17: Drainage Area A | C17: Drainage Area B | D17: Drainage Area C | E17: Drainage Area D | G17: Drainage Area A | H17: Drainage Area B | I17: Drainage Area C | J17: Drainage Area D
A19: DRAINAGE AREA CHARACTERISTICS
A20: Drainage Area (acres) DA | B20: ='1. ENTER DATA'!E17 -> 1 | C20: ='1. ENTER DATA'!F17 -> 1 | D20: ='1. ENTER DATA'!G17 -> 1 | E20: ='1. ENTER DATA'!H17 -> 1 | G20: =DA_A -> 1 | H20: =DA_B -> 1 | I20: =DA_C -> 1 | J20: =DA_D -> 1
A21: Runoff Coefficient Rv | B21: =RvA_d -> 0.0644 | C21: =RvB_d -> 0.0644 | D21: =RvC_d -> 0.0644 | E21: =RvD_d -> 0.0644 | G21: =RvA_d -> 0.0644 | H21: =RvB_d -> 0.0644 | I21: =RvC_d -> 0.0644 | J21: =RvD_d -> 0.0644
A22: Depression Storage, Sd (in.) | B22: =SdA_d -> 0.2181 | C22: =SdB_d -> 0.2181 | D22: =SdC_d -> 0.2181 | E22: =SdD_d -> 0.2181 | G22: =SdA_d -> 0.2181 | H22: =SdB_d -> 0.2181 | I22: =SdC_d -> 0.2181 | J22: =SdD_d -> 0.2181
A24: SCM 1 (First in Series) Type | B24: ='1. ENTER DATA'!E26 -> Retention Basin | C24: ='1. ENTER DATA'!F26 -> Retention Basin | D24: ='1. ENTER DATA'!G26 -> Retention Basin | E24: ='1. ENTER DATA'!H26 -> Retention Basin | G24: Sed/Fil Std | H24: Sed/Fil Std | I24: Sed/Fil Std | J24: Sed/Fil Std
A25: Water Quality Volume (in.) | B25: =WQV_A1 -> 2.5 | C25: =WQV_B1 -> 2.5 | D25: =WQV_C1 -> 2.5 | E25: =WQV_D1 -> 2.5 | G25: ='3. CALCS_Loads'!C93 -> 0.5 | H25: ='3. CALCS_Loads'!D93 -> 0.5 | I25: ='3. CALCS_Loads'!E93 -> 0.5 | J25: ='3. CALCS_Loads'!F93 -> 0.5
A26: Design Drawdown Time (hr), DDT - or - | B26: =DDT_A1 -> 60 | C26: =DDT_B1 -> 60 | D26: =DDT_C1 -> 60 | E26: =DDT_D1 -> 60 | G26: 48 | H26: 48 | I26: 48 | J26: 48
A27: - or - Design Flow Rate | B27: ='1. ENTER DATA'!E33*0.00221/'5.CALCS_Adams&Papa'!B20 -> 0.0333268 | C27: ='1. ENTER DATA'!F33*0.00221/'5.CALCS_Adams&Papa'!C20 -> 0.0333268 | D27: ='1. ENTER DATA'!G33*0.00221/'5.CALCS_Adams&Papa'!D20 -> 0.0333268 | E27: ='1. ENTER DATA'!H33*0.00221/'5.CALCS_Adams&Papa'!E20 -> 0.0333268
A28: Design Treatment Rate | B28: =IF('1. ENTER DATA'!E31="Flow Rate",'5.CALCS_Adams&Papa'!B27,'5.CALCS_Adams&Papa'!B25/'5.CALCS_Adams&Papa'!B26) -> 0.04166666667 | C28: =IF('1. ENTER DATA'!F31="Flow Rate",'5.CALCS_Adams&Papa'!C27,'5.CALCS_Adams&Papa'!C25/'5.CALCS_Adams&Papa'!C26) -> 0.04166666667 | D28: =IF('1. ENTER DATA'!G31="Flow Rate",'5.CALCS_Adams&Papa'!D27,'5.CALCS_Adams&Papa'!D25/'5.CALCS_Adams&Papa'!D26) -> 0.04166666667 | E28: =IF('1. ENTER DATA'!H31="Flow Rate",'5.CALCS_Adams&Papa'!E27,'5.CALCS_Adams&Papa'!E25/'5.CALCS_Adams&Papa'!E26) -> 0.04166666667
A29: Lag time before irrigation (hr) | B29: ='1. ENTER DATA'!E42 -> 12 | C29: ='1. ENTER DATA'!F42 -> 12 | D29: ='1. ENTER DATA'!G42 -> 12 | E29: ='1. ENTER DATA'!H42 -> 12 | G29: =G26 -> 48 | H29: =H26 -> 48 | I29: =I26 -> 48 | J29: =J26 -> 48
A30: Adjusted Treatment Rate, Ω (in/hr) | B30: =(1/B28+IF(B25<>0,B29/B25,0))^(-1) -> 0.03472222222 | C30: =(1/C28+IF(C25<>0,C29/C25,0))^(-1) -> 0.03472222222 | D30: 0.03472222222 | E30: 0.03472222222 | F30: *Includes lag time | G30: =G25/G29 -> 0.01041666667 | H30: =H25/H29 -> 0.01041666667 | I30: =I25/I29 -> 0.01041666667 | J30: =J25/J29 -> 0.01041666667
A32: AVERAGE ANNUAL RUNOFF CAPTURE ANALYSIS
A33: Avg. Annual Number of Runoff Events Eqn. 7.9 | B33: =THETA*EXP(-ZETA*B22) -> 45.98576993 | C33: =THETA*EXP(-ZETA*C22) -> 45.98576993 | D33: =THETA*EXP(-ZETA*D22) -> 45.98576993 | E33: =THETA*EXP(-ZETA*E22) -> 45.98576993 | G33: =THETA*EXP(-ZETA*G22) -> 45.98576993 | H33: =THETA*EXP(-ZETA*H22) -> 45.98576993 | I33: =THETA*EXP(-ZETA*I22) -> 45.98576993 | J33: =THETA*EXP(-ZETA*J22) -> 45.98576993
A34: Avg. Runoff Volume per event (in.) | B34: =$C$13/THETA*B21 -> 0.0257583764 | C34: =$C$13/THETA*C21 -> 0.0257583764 | D34: =$C$13/THETA*D21 -> 0.0257583764 | E34: =$C$13/THETA*E21 -> 0.0257583764 | G34: =$C$13/THETA*G21 -> 0.0257583764 | H34: =$C$13/THETA*H21 -> 0.0257583764 | I34: =$C$13/THETA*I21 -> 0.0257583764 | J34: =$C$13/THETA*J21 -> 0.0257583764
A35: R Average Annual Runoff Volume (in.) | B35: =B33*B34 -> 1.184518771 | C35: =C33*C34 -> 1.184518771 | D35: =D33*D34 -> 1.184518771 | E35: =E33*E34 -> 1.184518771 | G35: =G33*G34 -> 1.184518771 | H35: =H33*H34 -> 1.184518771 | I35: 1.184518771 | J35: =J33*J34 -> 1.184518771
A36: Probability of Spill Occurring (GP) Eqn. 8.4a | B36: =LAMBDA/B$30/(LAMBDA/B$30+ZETA/B$21)*(PSI/B$30+ZETA/B$21*EXP(-(PSI/B$30+ZETA/B$21)*B$25))/(PSI/B$30+ZETA/B$21)*EXP(-ZETA*B$22) -> 0.0004693759192 | C36: =LAMBDA/C$30/(LAMBDA/C$30+ZETA/C$21)*(PSI/C$30+ZETA/C$21*EXP(-(PSI/C$30+ZETA/C$21)*C$25))/(PSI/C$30+ZETA/C$21)*EXP(-ZETA*C$22) -> 0.0004693759192 | D36: =LAMBDA/D$30/(LAMBDA/D$30+ZETA/D$21)*(PSI/D$30+ZETA/D$21*EXP(-(PSI/D$30+ZETA/D$21)*D$25))/(PSI/D$30+ZETA/D$21)*EXP(-ZETA*D$22) -> 0.0004693759192 | E36: =LAMBDA/E$30/(LAMBDA/E$30+ZETA/E$21)*(PSI/E$30+ZETA/E$21*EXP(-(PSI/E$30+ZETA/E$21)*E$25))/(PSI/E$30+ZETA/E$21)*EXP(-ZETA*E$22) -> 0.0004693759192 | G36: =IF(G30=0,1,G29/(G29+t*G25/(v*G21))*(G29/(b*G25)+1/(v*G21)*EXP(-(G29/(b*G25)+1/(v*G21))*G25))/(G29/(b*G25)+1/(v*G21))*EXP(-G22/v)) -> 0.004052879064 | H36: =IF(H30=0,1,H29/(H29+t*H25/(v*H21))*(H29/(b*H25)+1/(v*H21)*EXP(-(H29/(b*H25)+1/(v*H21))*H25))/(H29/(b*H25)+1/(v*H21))*EXP(-H22/v)) -> 0.004052879064 | I36: =IF(I30=0,1,I29/(I29+t*I25/(v*I21))*(I29/(b*I25)+1/(v*I21)*EXP(-(I29/(b*I25)+1/(v*I21))*I25))/(I29/(b*I25)+1/(v*I21))*EXP(-I22/v)) -> 0.004052879064 | J36: =IF(J30=0,1,J29/(J29+t*J25/(v*J21))*(J29/(b*J25)+1/(v*J21)*EXP(-(J29/(b*J25)+1/(v*J21))*J25))/(J29/(b*J25)+1/(v*J21))*EXP(-J22/v)) -> 0.004052879064
A37: Average Annual Runoff Capture Efficiency RCE (%) | B37: =IF(AND(B25=0,'1. ENTER DATA'!E31="Drawdown Time"),0,IF(B28=0,0,1-B36)) -> 0.9995306241 | C37: =IF(AND(C25=0,'1. ENTER DATA'!F31="Drawdown Time"),0,IF(C28=0,0,1-C36)) -> 0.9995306241 | D37: =IF(AND(D25=0,'1. ENTER DATA'!G31="Drawdown Time"),0,IF(D28=0,0,1-D36)) -> 0.9995306241 | E37: =IF(AND(E25=0,'1. ENTER DATA'!H31="Drawdown Time"),0,IF(E28=0,0,1-E36)) -> 0.9995306241 | G37: =1-G36 -> 0.9959471209 | H37: =1-H36 -> 0.9959471209 | I37: =1-I36 -> 0.9959471209 | J37: =1-J36 -> 0.9959471209
A38: Avg. Annual Runoff Volume Treated RC (in/yr) | B38: =B$35*B37 -> 1.183962786 | C38: =C$35*C37 -> 1.183962786 | D38: 1.183962786 | E38: 1.183962786 | G38: =G35*G37 -> 1.17971806 | H38: =H35*H37 -> 1.17971806 | I38: =I35*I37 -> 1.17971806 | J38: =J35*J37 -> 1.17971806
A39: Volume treated (Acre-in/yr) | B39: =B38*B20 -> 1.183962786 | C39: =C38*C20 -> 1.183962786 | D39: =D38*D20 -> 1.183962786 | E39: =E38*E20 -> 1.183962786 | G39: =G38*G20 -> 1.17971806 | H39: =H38*H20 -> 1.17971806 | I39: =I38*I20 -> 1.17971806 | J39: =J38*J20 -> 1.17971806
A40: Bypass Volume (Acre-in/yr) | B40: =B35*B36*B20 -> 0.000555984587 | C40: =C35*C36*C20 -> 0.000555984587 | D40: =D35*D36*D20 -> 0.000555984587 | E40: =E35*E36*E20 -> 0.000555984587 | G40: =G35*G36*G20 -> 0.004800711327 | H40: =H35*H36*H20 -> 0.004800711327 | I40: =I35*I36*I20 -> 0.004800711327 | J40: =J35*J36*J20 -> 0.004800711327
A42: SCM 2 (Second in Series) ROUTING
A43: SCM 2 Type | B43: ='1. ENTER DATA'!E45 -> Infiltration Field | C43: ='1. ENTER DATA'!F45 -> Infiltration Field | D43: ='1. ENTER DATA'!G45 -> Infiltration Field | E43: ='1. ENTER DATA'!H45 -> Infiltration Field
A44: Water Quality Volume (in.) Routed | B44: ='3. CALCS_Loads'!C150 -> 2.5 | C44: ='3. CALCS_Loads'!D150 -> 0 | D44: ='3. CALCS_Loads'!E150 -> 0 | E44: ='3. CALCS_Loads'!F150 -> 0
A45: Adjusted Treatment Rate, Ω (in/hr) | B45: =B30 -> 0.03472222222 | C45: =C30 -> 0.03472222222 | D45: =D30 -> 0.03472222222 | E45: =E30 -> 0.03472222222
A47: AVERAGE ANNUAL RUNOFF CAPTURE ANALYSIS
A48: Probability of Spill Occurring (GP) Eqn. 8.4a | B48: =LAMBDA/B$45/(LAMBDA/B$45+ZETA/B$21)*(PSI/B$45+ZETA/B$21*EXP(-(PSI/B$45+ZETA/B$21)*B$44))/(PSI/B$45+ZETA/B$21)*EXP(-ZETA*B$22) -> 0.0004693759192 | C48: =LAMBDA/C$45/(LAMBDA/C$45+ZETA/C$21)*(PSI/C$45+ZETA/C$21*EXP(-(PSI/C$45+ZETA/C$21)*C$44))/(PSI/C$45+ZETA/C$21)*EXP(-ZETA*C$22) -> 0.06603788824 | D48: =LAMBDA/D$45/(LAMBDA/D$45+ZETA/D$21)*(PSI/D$45+ZETA/D$21*EXP(-(PSI/D$45+ZETA/D$21)*D$44))/(PSI/D$45+ZETA/D$21)*EXP(-ZETA*D$22) -> 0.06603788824 | E48: =LAMBDA/E$45/(LAMBDA/E$45+ZETA/E$21)*(PSI/E$45+ZETA/E$21*EXP(-(PSI/E$45+ZETA/E$21)*E$44))/(PSI/E$45+ZETA/E$21)*EXP(-ZETA*E$22) -> 0.06603788824
A49: Average Annual Runoff Capture Efficiency RCE (%) | B49: =IF(B44=0,0,IF(B28=0,0,1-B48)) -> 0.9995306241 | C49: =IF(C44=0,0,IF(C28=0,0,1-C48)) -> 0 | D49: 0 | E49: 0
A50: Avg. Annual Runoff Volume Captured RC (in/yr) | B50: =B$35*B49 -> 1.183962786 | C50: =C$35*C49 -> 0 | D50: 0 | E50: 0
A51: Avg. Annual Volume Captured (Acre-in/yr) | B51: =B50*B20 -> 1.183962786 | C51: =C50*C20 -> 0 | D51: =D50*D20 -> 0 | E51: =E50*E20 -> 0
A53: SCM 2 Infiltration or Reuse
A54: Infiltrated water quality volume (in) | B54: ='4. CALCS_Infiltration'!E21 -> 2.5 | C54: ='4. CALCS_Infiltration'!F21 -> 0 | D54: ='4. CALCS_Infiltration'!G21 -> 0 | E54: ='4. CALCS_Infiltration'!H21 -> 0
A55: Adjusted Treatment Rate, Ω (in/hr) | B55: =B45 -> 0.03472222222 | C55: =C45 -> 0.03472222222 | D55: =D45 -> 0.03472222222 | E55: =E45 -> 0.03472222222
A57: AVERAGE ANNUAL RUNOFF CAPTURE ANALYSIS
A58: Probability of Spill Occurring (GP) Eqn. 8.4a | B58: =LAMBDA/B$55/(LAMBDA/B$55+ZETA/B$21)*(PSI/B$55+ZETA/B$21*EXP(-(PSI/B$55+ZETA/B$21)*B$54))/(PSI/B$55+ZETA/B$21)*EXP(-ZETA*B$22) -> 0.0004693759192 | C58: =LAMBDA/C$55/(LAMBDA/C$55+ZETA/C$21)*(PSI/C$55+ZETA/C$21*EXP(-(PSI/C$55+ZETA/C$21)*C$54))/(PSI/C$55+ZETA/C$21)*EXP(-ZETA*C$22) -> 0.06603788824 | D58: =LAMBDA/D$55/(LAMBDA/D$55+ZETA/D$21)*(PSI/D$55+ZETA/D$21*EXP(-(PSI/D$55+ZETA/D$21)*D$54))/(PSI/D$55+ZETA/D$21)*EXP(-ZETA*D$22) -> 0.06603788824 | E58: =LAMBDA/E$55/(LAMBDA/E$55+ZETA/E$21)*(PSI/E$55+ZETA/E$21*EXP(-(PSI/E$55+ZETA/E$21)*E$54))/(PSI/E$55+ZETA/E$21)*EXP(-ZETA*E$22) -> 0.06603788824
A59: Average Annual Runoff Capture Efficiency RCE (%) | B59: =IF(B54=0,0,IF(B28=0,0,1-B58)) -> 0.9995306241 | C59: =IF(C54=0,0,IF(C28=0,0,1-C58)) -> 0 | D59: 0 | E59: 0
A60: Avg. Annual Runoff Volume Captured RC (in/yr) | B60: =B$35*B59 -> 1.183962786 | C60: =C$35*C59 -> 0 | D60: =D$35*D59 -> 0 | E60: =E$35*E59 -> 0
A61: Avg. Annual Volume Captured (Acre-in/yr) | B61: =B60*B34 -> 0.0304969591 | C61: =C60*C34 -> 0 | D61: =D60*D34 -> 0 | E61: =E60*E34 -> 0
